{"text_format":"1","workbook":"xlsx","n_sheets":13,"sheets":["Plan0_Definições","Plan1 ORIENTAÇÕES PREENCHIMENTO","Plan2 1.DADOS,2.OBJ e 2.1.Vigên","Plan3 2.2. QUADRO RESUMO","Plan4 2.3. OPERAÇÕES","Plan5 3. JUSTIFIC. e 4.BENEFIC.","Plan 6 5. METAS e 6.ETAPAS","Plan7 7. PLA DE APL 8 Cap Int.","Plan8 9.PREVISÃO e10 CRONOGRAM","Plan 09.11MONIT_AVALIA_P.CONTAS","Planilha10  12.DOC_INTEGR_PT ","Plan11 10. ASSINATURAS","Municipios"],"not_rendered":{"charts":0,"images":4,"macros":1,"external_links":1,"defined_names":11,"comments":2,"pivot_tables":0},"unopened":[],"bounds":{"document_bytes":16777216,"sheet_cells":100000,"rows_first":2000,"rows_last":500,"rows_between":2000,"halvings":0,"cell_chars":16384,"cell_head_chars":4096},"cells_cut":0,"cells_raw":0,"read":"whole","date_system":"1900"}

{"sheet":"Plan0_Definições","index":0,"n_rows":15,"n_cols":3,"rows_kept":15,"cut":false,"hidden":true,"merged":[[10,2,10,11],[12,2,12,11],[11,2,11,11],[13,2,13,11],[14,2,14,11],[9,2,9,11],[1,1,1,11],[3,1,3,11],[5,2,5,11],[6,2,6,11],[7,2,7,11],[8,2,8,11]]}
[]
[null,"PROGRAMA ESTRADAS DA INTEGRAÇÃO  PROJETO DE ADEQUAÇÃO, READEQUAÇÃO, MAUTENÇÃO E OU MELHORIAS DE ESTRADAS RURAIS MUNICIPAIS - CUSTEIO SOMENTE ÓLEO DIESEL COM BASE EM  RTV - Relatório Técnico de Vistoria e Projetos Técnicos"]
[]
[null,"1 . DEFINIÇÕES"]
[]
[null,"1.1","ABERTURA DE ESTRADAS RURAIS:  obra destinada a dar acesso aos lotes que estão sendo objeto de reforma agrária, permitindo assim o livre acesso dos moradores ao comércio, educação, saúde e cidadania. Utilizando –se de práticas para a Conservação de solos e consequentemente das estradas, com a construção de estruturas para captação e retenção de águas pluviais."]
[null,"1.2","ADEQUAÇÃO DE ESTRADAS RURAIS*: obras destinadas à execução de melhoramentos em estradas rurais de menor hierarquia funcional, possuindo superfície de rolamento “não pavimentada”, cujo objetivo é o de elevar seu padrão operacional. Inclui-se nessa modalidade de intervenção:\n•         Serviços de re-locação de parte de seu traçado;\n•         Re-conformação de segmentos do greide;\n•         Execução de camadas de reforço do sub-leito e/ou;\n•         Revestimento primário. \n*Fonte: Estradas rurais Técnicas Adequadas de Manutenção. Florianópolis DER, 2003. 236 p. il. 30cm.\n"]
[null,"1.3","MANUTENÇÃO DE ESTRADA RURAL: pode ser definido como amplo conjunto de atividades destinadas a assegurar um transporte seguro, econômico e confortável em uma estrada ou rede de estradas. Uma das finalidades primordiais da manutenção é evitar, ao máximo possível, a perda desnecessária do capital já investido, mediante a proteção física da estrutura básica e da superfície de rolamento da estrada. A manutenção deve evitar a deterioração precoce da estrutura das estradas e, por conseguinte, a necessidade de serviços de reconstrução. Inclui-se nessa definição, as atividades de manutenção corretiva rotineira e periódica. "]
[null,"1.4","MELHORIA DE ESTRADA RURAL: Conjunto de operações que acrescentam as rodovias (estradas) existentes características novas, sem modificar as existentes ex. colocação de bueiros, sarjeteamento, bigodes, caixas de retenção. (fonte: DNER, glossário de termos técnicos rodoviários, Rio de janeiro, 1997, 266p. IPR. Publ.; 700)."]
[null,"1.5","Trafegabilidade é uma palavra derivada de trafegável, que se pode trafegar, andar no tráfego; fazer algum caminho; andar, transitar: os pedestres precisam de cuidado ao trafegar por ruas movimentadas. (fonte: https://www.dicio.com.br)"]
[null,"1.6","XXI - serviço de engenharia: toda atividade ou conjunto de atividades destinadas a obter determinada\nutilidade, intelectual ou material, de interesse para a Administração e que, não enquadradas no conceito de obra a que se refere o inciso XII do caput deste artigo, são estabelecidas, por força de lei, como privativas das profissões de arquiteto e engenheiro ou de técnicos especializados, que compreendem:\na) serviço comum de engenharia: todo serviço de engenharia que tem por objeto ações, objetivamente padronizáveis em termos de desempenho e qualidade, de manutenção, de adequação e de adaptação de bens móveis e imóveis, com preservação das características originais dos bens;\nb) serviço especial de engenharia: aquele que, por sua alta heterogeneidade ou complexidade, não pode se enquadrar na definição constante da alínea “a” deste inciso; fonte: CAPÍTULO III, DAS DEFINIÇÕES, Art. 6º Para os fins desta Lei LEI Nº 14.133, DE 1º DE ABRIL DE 2021"]
[null,1.7,"XXIV - anteprojeto: peça técnica com todos os subsídios necessários à elaboração do projeto básico, que deve conter, no mínimo, os seguintes elementos: L14133 http://www.planalto.gov.br/ccivil_03/_ato2019-2022/2021/lei/L14133.htm 4 of 73 30/11/2022 09:56\na) demonstração e justificativa do programa de necessidades, avaliação de demanda do público-alvo, motivação técnico-econômico-social do empreendimento, visão global dos investimentos e definições relacionadas ao nível de serviço desejado;\nb) condições de solidez, de segurança e de durabilidade;\nc) prazo de entrega;\nd) estética do projeto arquitetônico, traçado geométrico e/ou projeto da área de influência, quando cabível;\ne) parâmetros de adequação ao interesse público, de economia na utilização, de facilidade na execução, de impacto ambiental e de acessibilidade;\nf) proposta de concepção da obra ou do serviço de engenharia;\ng) projetos anteriores ou estudos preliminares que embasaram a concepção proposta;\nh) levantamento topográfico e cadastral;\ni) pareceres de sondagem;\nj) memorial descritivo dos elementos da edificação, dos componentes construtivos e dos materiais de construção, de forma a estabelecer padrões mínimos para a contratação;             fonte: CAPÍTULO III, DAS DEFINIÇÕES, Art. 6º Para os fins desta Lei LEI Nº 14.133, DE 1º DE ABRIL DE 2021, consideram-se:\n"]
[null,"1.8","XXV - projeto básico: conjunto de elementos necessários e suficientes, com nível de precisão adequado para definir e dimensionar a obra ou o serviço, ou o complexo de obras ou de serviços objeto da licitação, elaborado com base nas indicações dos estudos técnicos preliminares, que assegure a viabilidade técnica e o adequado tratamento do impacto ambiental do empreendimento e que possibilite a avaliação do custo da obra e a definição dos métodos e do prazo de execução, devendo conter os seguintes elementos:\na) levantamentos topográficos e cadastrais, sondagens e ensaios geotécnicos, ensaios e análises laboratoriais, estudos socioambientais e demais dados e levantamentos necessários para execução da solução escolhida;\nb) soluções técnicas globais e localizadas, suficientemente detalhadas, de forma a evitar, por ocasião da elaboração do projeto executivo e da realização das obras e montagem, a necessidade de reformulações ou variantes quanto à qualidade, ao preço e ao prazo inicialmente definidos;\nc) identificação dos tipos de serviços a executar e dos materiais e equipamentos a incorporar à obra, bem como das suas especificações, de modo a assegurar os melhores resultados para o empreendimento e a segurança executiva na utilização do objeto, para os fins a que se destina, considerados os riscos e os perigos identificáveis, sem frustrar o caráter competitivo para a sua execução;\nd) informações que possibilitem o estudo e a definição de métodos construtivos, de instalações provisórias e de condições organizacionais para a obra, sem frustrar o caráter competitivo para a sua execução;\ne) subsídios para montagem do plano de licitação e gestão da obra, compreendidos a sua programação, a estratégia de suprimentos, as normas de fiscalização e outros dados necessários em cada caso;\nf) orçamento detalhado do custo global da obra, fundamentado em quantitativos de serviços e fornecimentos propriamente avaliados, obrigatório exclusivamente para os regimes de execução previstos nos incisos I, II, III, IV e VII do caput do art. 46 desta Lei;                                                                                    fonte: CAPÍTULO III, DAS DEFINIÇÕES, Art. 6º Para os fins desta Lei LEI Nº 14.133, DE 1º DE ABRIL DE 2021\n"]
[null,"1.9","XXVI - projeto executivo: conjunto de elementos necessários e suficientes à execução completa da obra, com o detalhamento das soluções previstas no projeto básico, a identificação de serviços, de materiais e de equipamentos a serem incorporados à obra, bem como suas especificações técnicas, de acordo com as normas técnicas pertinentes;                                                                                                                                                    fonte: CAPÍTULO III, DAS DEFINIÇÕES, Art. 6º LEI Nº 14.133, DE 1º DE ABRIL DE 2021:"]
[null,"1.10","Art. 169. As contratações públicas deverão submeter-se a práticas contínuas e permanentes de gestão de riscos e de controle preventivo, inclusive mediante adoção de recursos de tecnologia da informação, e, além de estar subordinadas ao controle social, sujeitar-se-ão às seguintes linhas de defesa:\nI - primeira linha de defesa, integrada por servidores e empregados públicos, agentes de licitação e autoridades que atuam na estrutura de governança do órgão ou entidade;                                                                                                                                                                                                 II - segunda linha de defesa, integrada pelas unidades de assessoramento jurídico e de controle interno do próprio órgão ou entidade;                                                                                    III - terceira linha de defesa, integrada pelo órgão central de controle interno da Administração e pelo tribunal de contas...                                                                                                                    fonte: CAPÍTULO III, DO CONTROLE DAS CONTRATAÇÕES Art. 169.LEI Nº 14.133, DE 1º DE ABRIL DE 2021"]

{"sheet":"Plan1 ORIENTAÇÕES PREENCHIMENTO","index":1,"n_rows":46,"n_cols":5,"rows_kept":46,"cut":false,"hidden":true,"merged":[[43,0,43,10],[52,0,52,10],[45,4,50,5],[44,0,44,10],[30,1,30,10],[31,1,31,10],[32,1,32,10],[38,1,38,10],[42,1,42,10],[41,1,41,10],[40,1,40,10],[39,1,39,10],[37,1,37,10],[33,1,33,10],[34,1,34,10],[35,1,35,10],[36,1,36,10],[20,1,20,10],[21,1,21,10],[22,1,22,10],[29,1,29,10],[24,1,24,10],[27,1,27,10],[28,1,28,10],[0,0,0,10],[23,1,23,10],[25,1,25,10],[26,1,26,10],[13,1,13,10],[1,0,1,10],[12,1,12,10],[4,1,4,10],[3,1,3,10],[7,1,7,10],[11,1,11,10],[9,0,9,10],[6,1,6,10],[5,1,5,10],[17,0,17,10],[19,1,19,10],[21,0,23,0],[26,0,27,0],[28,0,29,0],[31,0,32,0],[37,0,42,0],[34,0,36,0]]}
["PROGRAMA ESTRADAS DA INTEGRAÇÃO  PROJETO DE ADEQUAÇÃO, READEQUAÇÃO, MAUTENÇÃO E OU MELHORIAS DE ESTRADAS RURAIS MUNICIPAIS - CUSTEIO SOMENTE ÓLEO DIESEL COM BASE EM  RTV - Relatório Técnico de Vistoria e Projetos Técnicos"]
["1 . ORIENTAÇÕES PARA O PREENCHIMENTO DA PLANILHA"]
[]
["1.1","Todas as células com a cor AZUL devem ser preenchidas pelo MUNICÍPIO"]
["1.2","Todas as células preenchidas de VERDE são resultados automáticos de fórmulas e NÃO PODEM SER MODIFICADAS.\nCaso haja necessidade de incluir novas linhas na planilha é importante verificar se as fórmulas estão contemplando todas as células, conferindo o Número e Letra na fórmula ao clicar nelas. Nesse caso, excepcionalmente, deve-se fazer a correção da fórmula para anular erros (por isso as células não foram bloqueadas)."]
["1.3","A logomarca do município deve ser inserida dentro do quadro abaixo e a mesma será replicada em todas as páginas do plano de trabalho."]
["1.4","Caso a largura de alguma coluna precise ser modificada, para impressão não cortar a página, clicar em Exibir > Vizualização da Quebra de Página: arrastar a linha de quebra para contemplar toda a tabela. Depois Exibir > Normal, para voltar à visualização de planilha."]
["1.5","O valor de contrapartida municipal  é obrigatória  para todas as trasnferencias voluntárias, conforme Lei Federal- nº 14.133 e Decreto Estadual nº 10086."]
[]
["2 . ORIENTAÇÕES PARA INCLUSÃO DO PLANO DE TRABALHO NO E-PROTOCOLO"]
[]
["2.1","Para assinatura, há duas opções:\na) Preferencialmente, salvar o documento em .pdf (selecionar todas as pastas da planilha antes de converter para que todas sejam incluídas no documento). Inserir no e-protocolo e assinar eletronicamente;\nb) Ou o documento pode ser impresso englobando todas as pastas do excel. Acessar:\nArquivo> Imprimir> Configurações> Imprimir Toda a Pasta de Trabalho.\nCom o documento físico em mãos, após assinado, este será escaneado e salvo no formato pdf. Então pode ser inserido normalmente no e-protocolo."]
["2.2","Com o documento físico em mãos, após assinado, este será escaneado e salvo no formato pdf. Então pode ser inserido normalmente no e-protocolo."]
["2.3","Também deverá ser inserido no e-protocolo outra versão do Plano de Trabalho no formato excel, como anexo. \nA opção de inserir anexos está localizada logo antes da etapa de encaminhamento conforme exposto na imagem abaixo."]
[]
[]
[]
["3 . ÍNDICE DE PASTAS DA PLANILHA"]
[]
[null,"Conteúdo"]
[1,"Orientações"]
[2,"1. Dados Cadastrais do Município - Ao  informar o Municipio na lista suspensa os dados -  IPDM, CNPJ, Endereço, UF, CEP, Nome do Prefeito serão preenchidos automáricamente, informar demais dados."]
[null,"2. Identificação do Objeto - Sua descrição  será ajustado automáticamente quando informado na guia suspensa da planilha  2.3. Operações (Plan4 2.3. OPERAÇÕES)"]
[null,"2.1. Período de Vigência - informado automáticamente conforme extensão do trecho em 24 ou 36 meses.)"]
[3,"2.2. Quadro Resumo (Total das Estradas Rurais/trechos indicados nos RTV’s, informar os nomes das estradas delimitada pelas coordenadas inicial e final  em UTM)"]
[4,"2.3. Operações (Plan4 2.3. OPERAÇÕES) em função do tipo de pavimentos informado através da guia suspensa  na planilha      ( Plan2 1.DADOS,2.OBJ e 2.1.Vigên), será disponibilizado automáticamente os possiveis serviços a serem projetados  na (Plan4 2.3. OPERAÇÕES), podendo estas serem ajustadas conforme a necessidade. Deverá ser apresentado em separado as memorias de calculos e o respectivo termo de referência. O DMT - Distancia Média de Transporte dos materiais a serem trasnportados deve ser  elaborado com base em tres possiveis fornecedores. "]
[5,"3. Justificativa- Descrever detalhadamente sobre a necessidade da execução da Obra, custo e beneficio em conformidade com a planilha - Plan5 3. JUSTIFIC. e 4.BENEFIC."]
[null,"4. Beneficiários elenca- los conforme Plan5 3. JUSTIFIC. e 4.BENEFIC."]
[6,"5. Definição e detalhamento das metas"]
[null,"6. Etapas de execução - Indicar todos os trechos  realacionados na Planilha 3 - 2.2 (Quadro Resumo) - Divididos em Subtrechos-  Etapas de 1.000,00 em 1.000,00 m, na quantidade que for necessária."]
[7,"7. Plano de Aplicação dos Recursos Financeiros 8. Capacidade instalada do municipio;"]
[8,"9. Previsão de início e fim da execução do objeto (considerar como ponto inicial a publicação no DIOE-PR). Os trechos especificado na planilha Plan8 8.PREVISÃO e 9 CRONOGRAMA devem estar alinhados com a planilha  Plan 6 5. METAS e 6.ETAPAS"]
[null,"10. Cronograma de desembolso (quando necessário ajustar o número de meses entre as parcelas)"]
[9,"11. DO MONITORAMENTO, AVALIAÇÃO E DA PRESTAÇÃO DE CONTAS "]
[10,"12. Documentos integrantes do plano de trabalho"]
[null,"12.1 Descrição dos documentos"]
[null,"12.2  Para obras ou serviços de engenharia e arquitetura."]
[11,"13. Declaração do Responsável Contábil pela Elaboração do Plano de Trabalho"]
[null,"14. Declaração do Responsável Técnico pela Elaboração do Plano de Trabalho"]
[null,"15.  Declaração do Município "]
[null,"16. Assinatura do Gestor do Convênio pela SEAB (Chefe do NR)"]
[null,"17.1 e 17.2  Manifestação técnica  do DEAGRO - sede"]
[null,"18. Aprovação pela SEAB"]
["FORMULÁRIO - PLANO DE TRABALHO VERSÃO FINAL em 08-08-2023"]
["INSIRA DENTRO DO QUADRO A LOGO DO MUNICÍPIO"]
[null,null,null,null,"LOGO"]

{"sheet":"Plan2 1.DADOS,2.OBJ e 2.1.Vigên","index":2,"n_rows":61,"n_cols":13,"rows_kept":61,"cut":false,"hidden":false,"merged":[[39,1,39,3],[39,4,39,6],[23,4,23,5],[17,7,17,8],[17,2,17,4],[37,4,37,6],[37,1,37,3],[35,4,35,6],[29,1,29,8],[24,2,24,8],[34,1,34,3],[35,1,35,3],[34,4,34,6],[36,4,36,6],[36,1,36,3],[30,1,32,8],[41,1,41,8],[43,1,43,2],[44,1,44,2],[1,2,1,8],[26,2,26,8],[27,2,27,3],[27,5,27,8],[22,2,22,8],[23,6,23,8],[23,2,23,3],[18,2,18,8],[19,2,19,8],[21,2,21,8],[20,6,20,8],[17,5,17,6],[6,2,6,8],[7,2,7,8],[20,11,21,17],[13,2,13,8],[8,6,8,8],[8,2,8,4],[12,5,12,8],[11,2,11,8],[12,2,12,3],[9,6,9,8],[10,2,10,8]]}
[]
[null,null,"PLANO DE TRABALHO\n MELHORIA DA TRAFEGABILIDADE EM ESTRADAS RURAIS MUNICIPAIS\nÓLEO DIESEL com base no RTV - Relatório Técnico de Vistoria e Projetos Técnicos"]
[]
[null,"1. DADOS CADASTRAIS "]
[null,"1.1 DO CONCEDENTE"]
[]
[null,"Secretaria","Secretaria da Agricultura e do Abastecimento"]
[null,"CNPJ:","76.416.957/0001-85"]
[null,"Endereço:","Rua dos Funcionários nº 1559, Cabral",null,null,"Município:","Curitiba"]
[null,"UF:","PR","CEP:","80035-050","Telefone:","(41) 3313-4000"]
[null,"Contato:","https://www.agricultura.pr.gov.br/Formulario/Fale-com-SEAB"]
[null,"Secretário","Norberto Anacleto Ortigara "]
[null,"Decreto n.º","0009/2023",null,"Cargo:","Secretário de Estado da Agricultura e do Abastecimento - SEAB"]
[null,"e-mail:","nortigara@seab.pr.gov.br"]
[null,"Obs.: LGPD - Lei Geral de Proteção de Dados Pessoais, Lei nº 13.709/2018, IPDM - (Índice Ipardes de Desempenho Municipal)"]
[null,"1.2  DO TOMADOR"]
[]
[null,"Município:","Adrianópolis",null,null,"IPDM (IPARDES)",null,{"$f":"VLOOKUP(C18,Municipios!A:I,2,0)","v":0.67694205309987032}]
[null,"CNPJ:",{"$f":"VLOOKUP(C18,Municipios!A:I,5,0)","v":"76.105.642/0001-17"}]
[null,"Endereço:",{"$f":"VLOOKUP(C18,Municipios!A:I,7,0)","v":"Av. Marechal Mascarenhas de Morães, 115, Centr"}]
[null,"UF:","PR","CEP:",{"$f":"VLOOKUP(C18,Municipios!A:I,8,0)","v":"83.490-000"},"Telefone:","XXXXXXX"]
[null,"e-mail:","XXXXXXXXXXX"]
[null,"Prefeito",{"$f":"VLOOKUP(C18,Municipios!A:I,9,0)","v":"Vandir de Oliveira Rosa"}]
[null,"CPF - (LGPD*):","XXXXXXXXX",null,"RG/Órgão Expedidor (LGPD*):",null,"XXXXXXXXX"]
[null,"e-mail:","XXXXXXXXX"]
[null,"Obs.: LGPD - Lei Geral de Proteção de Dados Pessoais, Lei nº 13.709/2018, IPDM - (Índice Ipardes de Desempenho Municipal)"]
[null,"Banco:","XXXXXXXXXX"]
[null,"Agência:","XXXXXXXXXX",null,"Conta Convênio:","XXXXXXXXXX"]
[]
[null,"2. IDENTIFICAÇÃO DO OBJETO",null,null,null,null,null,null,null,null,null,"Este Plano de Trabalho integrará o Termo de Convênio pelo qual os partícipes conjugam esforços para assegurarem as condições de trafegabilidades ao longo do ano dos trechos das estradas rurais identificadas no item 2.2 – Quadro Resumo, mediante a implementação de ações de:  "]
[null,{"$f":"CONCATENATE(L30,E35,L31)","v":"Este Plano de Trabalho integrará o Termo de Convênio pelo qual os partícipes conjugam esforços para assegurarem as condições de trafegabilidades ao longo do ano dos trechos das estradas rurais identificadas no item 2.2 – Quadro Resumo, mediante a implementação de ações de:  MELHORIAS, de acordo com os princípios das estradas rurais integradas aos sistemas conservacionaistas, para as quais o concedente repassará recursos ao Município, para aquisição de óleo diesel, em consonância com o  Plano Paraná Mais Cidades, conforme descrito abaixo: "},null,null,null,null,null,null,null,null,null,", de acordo com os princípios das estradas rurais integradas aos sistemas conservacionaistas, para as quais o concedente repassará recursos ao Município, para aquisição de óleo diesel, em consonância com o  Plano Paraná Mais Cidades, conforme descrito abaixo: "]
[]
[]
[]
[null,"Tipo de Serviço",null,null,"MELHORIAS",null,null,null,null,null,null,"Tipos de Servíço","Valor"]
[null,"Extensão (m)",null,null,{"$f":"'Plan3 2.2. QUADRO RESUMO'!G23","v":1000},null,null,null,null,null,null,"ADEQUAÇÃO",500000]
[null,"Média Largura (m)",null,null,{"$f":"'Plan3 2.2. QUADRO RESUMO'!I23","v":7},null,null,null,null,null,null,"READEQUAÇÃO",500000]
[null," Área dos serviços (m²)",null,null,{"$f":"'Plan3 2.2. QUADRO RESUMO'!L23","v":7000},null,null,null,null,null,null,"MANUTENÇÃO",500000]
[null,null,null,null,null,null,null,null,null,null,null,"MELHORIAS",500000]
[null,"Quantidade de óleo diesel (litros)",null,null,{"$f":"'Plan4 2.3. OPERAÇÕES'!Q58","v":6273.1121843867495}]
[]
[null,"2.1.  Período de Vigência"]
[]
[null," Início da vigência: ",null,"Data da publicação do termo de convênio no DIOE "]
[null,"Término da vigência: ",null,{"$f":"IF(E36<=2000,24,36)","v":24}," meses após a publicação do termo de convênio no DIOE "]
[null,"Obs.: vigência minimo de 24 meses; DIOE - (DIÁRIO OFICIAL DO ESTADO)"]
[]
[]
[]
[]
[]
[]
[]
[]
[null,null,null,null,null,null,null,null,null,null,null,"Coluna1","Coluna2"]
[null,null,null,null,null,null,null,null,null,null,null,"RECAPE - CBUQ",2000000]
[null,null,null,null,null,null,null,null,null,null,null,"PARALELEPIPEDO",1680000]
[null,null,null,null,null,null,null,null,null,null,null,"PAVER",1100000]
[null,null,null,null,null,null,null,null,null,null,null,"TSS - Tratamento Superficial Simples",600000]
[null,null,null,null,null,null,null,null,null,null,null,"TSD - Tratamento Superficial Duplo",700000]
[null,null,null,null,null,null,null,null,null,null,null,"TST - Tratamento Superficial Triplo",800000]

{"sheet":"Plan3 2.2. QUADRO RESUMO","index":3,"n_rows":26,"n_cols":13,"rows_kept":26,"cut":false,"hidden":false,"merged":[[5,7,6,7],[26,1,26,12],[25,1,25,12],[23,1,23,5],[22,1,22,5],[1,4,1,12],[3,1,3,12],[5,1,6,1],[5,2,6,2],[1,1,1,2],[5,10,6,10],[5,12,6,12],[5,11,6,11],[5,6,6,6],[5,3,5,5],[5,9,6,9],[5,8,6,8]]}
[]
[null,null,null,null,"PLANO DE TRABALHO\n MELHORIA DA TRAFEGABILIDADE EM ESTRADAS RURAIS MUNICIPAIS\nÓLEO DIESEL com base no RTV - Relatório Técnico de Vistoria e Projetos Técnicos"]
[]
[null,"2.2. Quadro Resumo (Total das Estradas Rurais/trechos indicados nos RTV’s*)"]
[]
[null,"nº","Estrada Rural/ Nome/ Trechos","Coordenadas UTM - SAD-69",null,null,"Extensão total(m)","Extensão cascalhamento (m)","Larg. total (m)","Larg. Cascalhamento (m)","Espessura cascalho compactado (m)","Área total (m²)","Área cascalhada(m²)"]
[null,null,null,"FUSO","Início                        Lat./Long.","Término                       Lat./Long."]
[null,1,"xxx","zz","vvv","bbb",1000,1000,7,6,0.15,{"$f":"G8*I8","v":7000},{"$f":"H8*J8","v":6000}]
[null,2,null,null,null,null,null,null,null,null,null,{"$f":"G9*I9","v":0},{"$f":"H9*J9","v":0}]
[null,3,null,null,null,null,null,null,null,null,null,0,0]
[null,4,null,null,null,null,null,null,null,null,null,0,0]
[null,5,null,null,null,null,null,null,null,null,null,0,0]
[null,6,null,null,null,null,null,null,null,null,null,0,0]
[null,7,null,null,null,null,null,null,null,null,null,0,0]
[null,8,null,null,null,null,null,null,null,null,null,0,0]
[null,9,null,null,null,null,null,null,null,null,null,0,0]
[null,10,null,null,null,null,null,null,null,null,null,0,0]
[null,11,null,null,null,null,null,null,null,null,null,0,0]
[null,12,null,null,null,null,null,null,null,null,null,0,0]
[null,13,null,null,null,null,null,null,null,null,null,0,0]
[null,14,null,null,null,null,null,null,null,null,null,0,0]
[null,15,null,null,null,null,null,null,null,null,null,0,0]
[null,"TOTAL/m.",null,null,null,null,{"$f":"SUM(G8:G22)","v":1000},null,{"$f":"AVERAGE(I8:I22)","v":7},{"$f":"AVERAGE(J8:J22)","v":6},{"$f":"AVERAGE(K8:K22)","v":0.15},{"$f":"SUM(L8:L22)","v":7000},{"$f":"SUM(M8:M22)","v":6000}]
[null,"TOTAL/Km",null,null,null,null,{"$f":"G23/1000","v":1}]
[]
[null,"*Relatórios Técnico de Vistorias  (01 por trecho/estrada rural)"]

{"sheet":"Plan4 2.3. OPERAÇÕES","index":4,"n_rows":69,"n_cols":23,"rows_kept":69,"cut":false,"hidden":false,"merged":[[42,13,42,15],[42,1,42,12],[40,4,40,7],[41,4,41,7],[43,13,45,13],[43,9,45,9],[43,8,45,8],[62,2,63,2],[62,3,63,3],[61,4,61,5],[61,2,61,3],[59,1,59,18],[62,7,63,7],[62,8,62,9],[61,6,61,9],[62,4,63,4],[62,5,63,5],[62,6,63,6],[49,4,49,7],[50,4,50,7],[43,4,45,7],[46,4,46,7],[47,4,47,7],[57,1,57,12],[7,20,8,20],[2,21,2,22],[4,1,4,22],[10,1,11,1],[10,2,11,2],[10,3,11,3],[10,9,11,9],[6,9,8,9],[9,13,9,15],[7,21,7,22],[16,1,17,1],[16,3,17,3],[21,1,22,1],[8,4,8,7],[27,4,27,7],[28,4,28,7],[21,13,22,13],[26,13,26,15],[9,1,9,12],[6,12,8,12],[6,10,8,10],[6,11,8,11],[19,4,19,7],[20,4,20,7],[21,4,22,7],[23,4,23,7],[24,4,25,7],[6,1,7,3],[21,9,22,9],[24,9,25,9],[21,8,22,8],[24,8,25,8],[24,13,25,13],[21,3,22,3],[1,21,1,22],[1,18,2,18],[10,4,11,7],[12,4,12,7],[13,4,13,7],[14,4,14,7],[15,4,15,7],[16,4,17,7],[18,4,18,7],[6,4,7,7],[6,8,8,8],[6,14,8,14],[6,13,8,13],[10,13,11,13],[16,13,17,13],[6,17,6,18],[7,18,8,18],[7,17,8,17],[6,16,8,16],[6,15,8,15],[16,9,17,9],[16,8,17,8],[1,3,2,16],[6,20,6,22],[24,1,25,1],[24,3,25,3],[43,1,45,1],[43,3,45,3],[26,1,26,12],[31,4,31,7],[32,4,32,7],[33,4,33,7],[34,4,34,7],[35,4,35,7],[36,4,36,7],[29,4,29,7],[30,4,30,7],[37,4,37,7],[38,4,38,7],[39,4,39,7],[48,13,48,15],[48,1,48,12],[52,4,52,7],[53,1,53,12],[54,1,54,12],[55,4,55,7],[56,4,56,7],[51,1,51,12],[51,13,51,15],[54,13,54,15]]}
[]
[null,null,null,"PLANO DE TRABALHO\n MELHORIA DA TRAFEGABILIDADE EM ESTRADAS RURAIS MUNICIPAIS\nÓLEO DIESEL com base no RTV - Relatório Técnico de Vistoria e Projetos Técnicos",null,null,null,null,null,null,null,null,null,null,null,null,null,null,"Contrapartida:  ","Municipio","IPDM","% DA CONTRAPARTDIDA"]
[null,null,null,null,null,null,null,null,null,null,null,null,null,null,null,null,null,null,null,{"$f":"'Plan2 1.DADOS,2.OBJ e 2.1.Vigên'!C18","v":"Adrianópolis"},{"$f":"VLOOKUP(T3,Municipios!A:C,2,0)","v":0.67694205309987032},{"$f":"VALUE(VLOOKUP(U3,Municipios!B:D,2,0))","v":0.05}]
[]
[null,"2.3. Operações a serem executadas nos trechos ( * Preferencialmente utilizar como referência: Tabelas de custos SEIL/DER/PR). E excepcionalmente SINAPI E DNIT, nos casos de serviços não contemplados pela tabeLa do DER-Pr"]
[]
[null,"Tipo  Serviço:",null,null,{"$f":"'Plan2 1.DADOS,2.OBJ e 2.1.Vigên'!E35","v":"MELHORIAS"},null,null,null,"Unid.","Qtd.","Rodovia pavimentada   DMT - km","Rodovia não pavimentada    DMT - km","MÁQUINA (referência)  E OUTROS A UTILIZAR","RENDIMENTO ESPERADO  - litros de OD POR HORA","Nº DE HORAS MÁQUINAS E CAMINHÕES/outros","média de consumo                   L/ HORA","N° DE LITROS OD","CUSTO  ÓLEO DIESEL - ANP EM .../.../202...(R$) e outros custos",null,"SEAB","CONTRAPARTIDA (MUNICÍPIO)²"]
[null,null,null,null,null,null,null,null,null,null,null,null,null,null,null,null,null,"UNITÁRIO","TOTAL",null,"FINANCEIRA R$","FÍSICA"]
[null,"Nº","Natureza de despesa","Código DER PR","Itens",null,null,null,null,null,null,null,null,null,null,null,null,null,null,"R$",null,"SERVIÇOS","BENS"]
[null,"01-TERRAPLENAGEM:",null,null,null,null,null,null,null,null,null,null,null,{"$f":"CONCATENATE(\"SubTotal \",B10)","v":"SubTotal 01-TERRAPLENAGEM:"},null,null,{"$f":"SUM(Q11:Q26)","v":2748.504249543581},null,{"$f":"SUM(S11:S26)","v":13770.006290213345},{"$f":"SUM(T11:T26)","v":13081.505975702676},{"$f":"SUM(U11:U26)","v":688.50031451066718},{"$f":"SUM(V11:V26)","v":0},{"$f":"SUM(W11:W26)","v":0}]
[null,1,"3.3.90.30.01","40115","Escavação carga e transporte de material de 1ª categoria 0 - 50 m",null,null,null,"m³",1000,0,0,"Motoniveladora 120 H",138.25,{"$f":"J11/N11*0.2","v":1.4466546112115735},20.41,{"$f":"O11*P11","v":29.526220614828215},5.01,{"$f":"Q11*R11","v":147.92636528028936},{"$f":"S11-U11-V11-W11","v":140.53004701627489},{"$f":"S11*$V$3","v":7.396318264014468},0,0]
[null,null,null,null,null,null,null,null,"m³",null,0,0,"Trator de lâmina D-6 ",null,{"$f":"J11/N11","v":7.2332730560578664},16.61,{"$f":"O12*P12","v":120.14466546112115},{"$f":"$R$11","v":5.01},{"$f":"Q12*R12","v":601.92477396021695},{"$f":"S12-U12-V12-W12","v":571.82853526220606},30.09623869801085,0,0]
[null,2,{"$f":"$C$11","v":"3.3.90.30.01"},"40102","Desmatamento e limpeza até Ø 30 cm",null,null,null,"m²",1000,0,0,"Trator de lâmina D-6 ",463.68,{"$f":"J13/N13","v":2.1566597653554176},16.61,35.822118702553482,{"$f":"$R$11","v":5.01},179.46881469979294,{"$f":"S13-U13-V13-W13","v":170.49537396480329},8.9734407349896479,0,0]
[null,3,{"$f":"$C$11","v":"3.3.90.30.01"},"40108","Lombadas",null,null,null,"m³",1000,0,0,"Carregador frontal pneus 924 – G",110,{"$f":"J14/N14","v":9.0909090909090917},15.92,144.72727272727275,5.01,725.0836363636364,688.82945454545461,36.25418181818182,0,0]
[null,4,"3.3.90.30.01","42110","Caixa de retenção",null,null,null,"m³",1000,0,0,"Retroescavadeira JCB 4x4",21.31,{"$f":"J15/N15","v":46.926325668700144},8.5,398.87376818395126,5.01,1998.3575786015956,1898.4396996715159,99.91787893007978,0,0]
[null,5,"3.3.90.30.01",401060,"Regularização de leito/patrolamento",null,null,null,"m²",1000,0,0,"Motoniveladora 120 H",1742,{"$f":"J16/N16","v":0.57405281285878296},20.41,11.71641791044776,5.01,58.699253731343276,55.764291044776115,2.9349626865671641,0,0]
[null,6,"3.3.90.30.01",51103,"Regularização, conformação e compactação visual do leito ",null,null,null,"m²",1000,0,0,"Motoniveladora 120 H",688.54,{"$f":"J17/N17*0.34","v":0.4937984721294334},20.41,10.078426816161736,5.01,50.492918348970292,47.968272431521775,2.524645917448515,0,0]
[null,null,"3.3.90.30.01",null,null,null,null,null,null,null,0,0,"Rolo compactador CA - 25",null,{"$f":"J17/N17","v":1.4523484474395099},11.59,16.832718505823919,5.01,84.331919714177829,80.115323728468937,4.2165959857088913,0,0]
[null,7,"3.3.90.30.01",40107,"Retaludamento",null,null,null,"m²",1000,0,0,"Motoniveladora 120 H",650,{"$f":"J19/N19","v":1.5384615384615385},20.41,31.400000000000002,5.01,157.31399999999999,149.44829999999999,7.8657000000000004,0,0]
[null,8,"3.3.90.30.01",40113,"Escavação para saída de água",null,null,null,"m³",1000,0,0,"Retroescavadeira JCB 4x4",37.299999999999997,{"$f":"J20/N20","v":26.809651474530835},8.5,227.88203753351209,5.01,1141.6890080428955,1084.6045576407507,57.084450402144775,0,0]
[null,9,"3.3.90.30.01","40101","Destocamento árvores Ø > 30cm",null,null,null,"unidade",1000,0,0,"Trator de lâmina D-6 ",12,83.333333333333329,16.61,1384.1666666666665,5.01,6934.6749999999993,6587.9412499999989,346.73374999999999,0,0]
[null,10,"3.3.90.30.01",40115,"Bigodes/Sangradouros",null,null,null,"m³",1000,0,0,"Motoniveladora 120 H",138.25,{"$f":"J22/N22*0.2","v":1.4466546112115735},20.41,29.526220614828215,5.01,147.92636528028936,140.53004701627489,7.396318264014468,0,0]
[null,null,"3.3.90.30.01",null,null,null,null,null,null,null,0,0,"Trator de lâmina D-6 ",null,{"$f":"J22/N22","v":7.2332730560578664},16.61,120.14466546112115,5.01,601.92477396021695,571.82853526220606,30.09623869801085,0,0]
[null,11,"3.3.90.30.01","OPÇÃO 2  PÁ","Bigodes/Sangradouros",null,null,null,"m³",1000,0,0,"Carregador frontal pneus 924 – G",110,{"$f":"J24/N24","v":9.0909090909090917},15.92,144.72727272727275,5.01,725.0836363636364,688.82945454545461,36.25418181818182,0,0]
[null,12,"3.3.90.30.01",51113,"Escarificação, conformação e compactação do subleito",null,null,null,"m²",1000,0,0,"Motoniveladora 120 H",417.3,{"$f":"(J25/N25)*0.31","v":0.74287083632878026},20.41,15.161993769470405,5.01,75.961588785046729,72.163509345794395,3.7980794392523367,0,0]
[null,null,"3.3.90.30.01",null,null,null,null,null,null,null,0,0,"Rolo compactador CA - 25",null,{"$f":"J25/N25","v":2.3963575365444525},11.59,27.773783848550202,5.01,139.1466570812365,132.18932422717467,6.9573328540618249,0,0]
[null,"02-DRENAGEM: ",null,null,null,null,null,null,null,null,null,null,null,{"$f":"CONCATENATE(\"SubTotal \",B27)","v":"SubTotal 02-DRENAGEM: "},null,null,{"$f":"SUM(Q28:Q42)","v":2247.4139049924224},null,{"$f":"SUM(S28:S42)","v":39585.230760786217},{"$f":"SUM(T28:T42)","v":37605.969222746913},{"$f":"SUM(U28:U42)","v":1979.2615380393113},{"$f":"SUM(V28:V42)","v":0},{"$f":"SUM(W28:W42)","v":0}]
[null,13,{"$f":"$C$11","v":"3.3.90.30.01"},60760,"Assentamento de tubos 0,30 m sem berço ",null,null,null,"m",100,0,0,"Retroescavadeira JCB 4x4",10,{"$f":"J28/N28","v":10},8.5,85,{"$f":"$R$11","v":5.01},{"$f":"Q28*R28","v":425.84999999999997},404.55749999999995,{"$f":"S28*$V$3","v":21.2925},0,0]
[null,14,"3.3.90.30.01","60301","Assentamento de tubos 0,40 m sem berço ",null,null,null,"m",100,0,0,"Retroescavadeira JCB 4x4",10,{"$f":"J29/N29","v":10},8.5,85,5.01,425.84999999999997,404.55749999999995,21.2925,0,0]
[null,15,"3.3.90.30.01","60302","Assentamento de tubos 0,60 m sem berço ",null,null,null,"m",100,0,0,"Retroescavadeira JCB 4x4",6,16.666666666666668,8.5,141.66666666666669,5.01,709.75000000000011,674.26250000000016,35.487500000000004,0,0]
[null,16,"3.3.90.30.01","60304","Assentamento de tubos 0,80 m sem berço",null,null,null,"m",100,0,0,"Retroescavadeira JCB 4x4",4,25,8.5,212.5,5.01,1064.625,1011.39375,53.231250000000003,0,0]
[null,17,"3.3.90.30.01","61100","Assentamento de tubos 1,00 m sem berço",null,null,null,"m",100,0,0,"Escav.Hidr. EC – 140",4,25,14,350,5.01,1753.5,1665.825,87.675000000000011,0,0]
[null,18,"3.3.90.30.01",60110,"Apiloamento manual",null,null,null,"m³",{"$f":"J28*0.93+J29*0.974+J30*1.407+J31*2.197+J32*2.615","v":812.3},0,0,"Um e meio homem",1.55,524.0645161290322,null,0,54.05,{"$f":"O33*R33","v":28325.687096774189},26909.402741935479,1416.2843548387095,0,0]
[null,19,"3.3.90.30.01",60760,"Assentamento de tubos 0,30 m sem berço - Transporte - peso unitário -0,097ton.",null,null,null,"ton.",{"$f":"TRUNC(J28*0.097,2)","v":9.6999999999999993},10,10,"CAMINHÃO BASCULANTE - 10,00 m³ ou 15,00 ton.",{"$f":"J34/O34","v":15},{"$f":"((J34/15)*(K34+L34))/20","v":0.64666666666666661},15,9.6999999999999993,5.01,48.596999999999994,46.167149999999992,2.4298500000000001,0,0]
[null,20,"3.3.90.30.01","60301","Assentamento de tubos 0,40 m sem berço - Transporte - peso unitário -0,110ton.",null,null,null,"ton.",{"$f":"TRUNC(J29*0.11,2)","v":11},10,10,"CAMINHÃO BASCULANTE - 10,00 m³ ou 15,00 ton.",{"$f":"J35/O35","v":15.000000000000002},{"$f":"((J35/15)*(K35+L35))/20","v":0.73333333333333328},15,11,5.01,55.11,52.354500000000002,2.7555000000000001,0,0]
[null,21,"3.3.90.30.01","60302","Assentamento de tubos 0,60 m sem berço - Transporte - peso unitário - 0,390 ton.",null,null,null,"ton.",{"$f":"TRUNC(J30*0.39,2)","v":39},10,10,"CAMINHÃO BASCULANTE - 10,00 m³ ou 15,00 ton.",15,2.6,15,39,5.01,195.39,185.62049999999999,9.7695000000000007,0,0]
[null,22,"3.3.90.30.01","60304","Assentamento de tubos 0,80 m sem berço - Transporte - peso unitário - 0,670 ton.",null,null,null,"ton.",{"$f":"TRUNC(J31*0.67,2)","v":67},10,10,"CAMINHÃO BASCULANTE - 10,00 m³ ou 15,00 ton.",15,4.4666666666666668,15,67,5.01,335.66999999999996,318.88649999999996,16.7835,0,0]
[null,23,"3.3.90.30.01","61100","Assentamento de tubos 1,00 m sem berço - Transporte - peso unitário - 1,000ton.",null,null,null,"ton.",{"$f":"TRUNC(J32*1,2)","v":100},10,10,"CAMINHÃO BASCULANTE - 10,00 m³ ou 15,00 ton.",15,6.666666666666667,15,100,5.01,501,475.95,25.05,0,0]
[null,24,"3.3.90.30.01","40114","Escavação de vala lateral rasa com motoniveladora",null,null,null,"m",2000,0,0,"Motoniveladora 120 H",735,{"$f":"J39/N39","v":2.7210884353741496},20.41,55.537414965986393,5.01,278.24244897959181,264.33032653061224,13.912122448979591,0,0]
[null,25,"3.3.90.30.01","60303","Escavação de bueiros e valas de drenagem 1a. cat.",null,null,null,"m³",{"$f":"(J28*1+J29*1.1+J30*1.69+J31*2.7+J32*3.4)","v":989},0,0,"Escav.Hidr. CX – 210",27.74,35.652487382840668,14,499.13482335976937,5.01,2500.6654650324444,2375.6321917808223,125.03327325162223,0,0]
[null,26,"3.3.90.30.01","60370","Enrocamento pedra de mão arrumada",null,null,null,"m³",{"$f":"J28*0.2117+J29*0.2577+J30*0.3549+J31*0.6884+J32*0.8548","v":236.75},0,0,"Dois homens",1,236.75,null,0,5.01,0,0,0,0,0]
[null,27,"3.3.90.30.01","97230","Enrocamento pedra de mão arrumada - transporte",null,null,null,"ton.",{"$f":"J41*1.98","v":468.76499999999999},10,10,"CAMINHÃO BASCULANTE - 10,00 m³ ou 15,00 ton.",{"$f":"J42/O42","v":11.88},{"$f":"((J42/11.88)*(K42+L42))/20","v":39.458333333333329},15,591.87499999999989,5.01,2965.2937499999994,2817.0290624999993,148.26468749999998,0,0]
[null,"03-CASCALHAMENTO E ATERROS:",null,null,null,null,null,null,null,null,null,null,null,{"$f":"CONCATENATE(\"SubTotal \",B43)","v":"SubTotal 03-CASCALHAMENTO E ATERROS:"},null,null,{"$f":"SUM(Q44:Q57)","v":1277.1940298507463},null,{"$f":"SUM(S44:S48)","v":8612.7420895522391},{"$f":"SUM(T44:T48)","v":8182.1049850746267},430.6371044776119,0,0]
[null,28,{"$f":"$C$11","v":"3.3.90.30.01"},"45201","Cascalhamento - (corte, carregamento, espalhamento e compactação)+aterros",null,null,null,"m³",{"$f":"1000*6*0.15","v":900},0,0,"ESCAVADEIRA HIDRÁULICA",107.2,{"$f":"J44/N44","v":8.3955223880597014},14,117.53731343283582,{"$f":"$R$11","v":5.01},588.86194029850742,559.41884328358208,{"$f":"S44*$V$3","v":29.443097014925371},0,0]
[null,null,"3.3.90.30.01",null,null,null,null,null,null,null,0,0,"MOTONIVELADORA",null,{"$f":"J44/N44","v":8.3955223880597014},20.41,171.35261194029852,5.01,858.47658582089548,815.55275652985074,{"$f":"S45*$V$3","v":42.923829291044775},0,0]
[null,null,"3.3.90.30.01",null,null,null,null,null,null,null,0,0,"ROLO COMPACTADOR",null,{"$f":"J44/N44","v":8.3955223880597014},11.59,97.304104477611943,5.01,487.4935634328358,463.11888526119401,{"$f":"S46*$V$3","v":24.37467817164179},0,0]
[null,29,"3.3.90.30.01","97210","Transporte do cascalho e/ou material para aterro ( se o material para aterro for de outro local deve ser calculado em separado)",null,null,null,"TONELADAS",{"$f":"J44*1.98","v":1782},10,10,"CAMINHÃO BASCULANTE - 10,00 m³ ou 15,00 ton.",{"$f":"J47/O47","v":30},{"$f":"((J47/15)*(K47+L47))/40","v":59.4},15,891,5.01,4463.91,4240.7145,{"$f":"S47*$V$3","v":223.19550000000001},0,0]
[null,30,"3.3.90.30.01",130130,"Royalts JAZIDA",null,null,null,"m³",{"$f":"J44","v":900},0,0,0,0,0,0,0,2.46,{"$f":"J48*R48","v":2214},2103.3000000000002,{"$f":"S48*$V$3","v":110.7},0,0]
[null,"04-IDENTIFICAÇÃO DA OBRA",null,null,null,null,null,null,null,null,null,null,null,{"$f":"CONCATENATE(\"SubTotal \",B49)","v":"SubTotal 04-IDENTIFICAÇÃO DA OBRA"},null,null,null,null,{"$f":"S50+S51","v":2775.73},{"$f":"S49-U49-V49-W49","v":2636.9434999999999},{"$f":"S49*$V$3","v":138.78650000000002},0,0]
[null,31,"3.3.90.30.01.00",821000,"Suporte de madeira 3\"x3\" p/ placa sinalização, h=3,00m",null,null,null,"ud",2,0,0,0,0,0,0,0,167.69,{"$f":"J50*R50","v":335.38},318.61099999999999,16.769000000000002,0,0]
[null,32,"3.3.90.30.01.00",820000,"Placa sinalização c/ película refletiva 1,50x3,00 m",null,null,null,"m²",4.5,0,0,0,0,0,0,0,542.29999999999995,{"$f":"J51*R51","v":2440.35},2318.3325,122.0175,0,0]
[null,"05-TOPOGRAFIA",null,null,null,null,null,null,null,null,null,null,null,{"$f":"CONCATENATE(\"SubTotal \",B52)","v":"SubTotal 05-TOPOGRAFIA"},null,null,null,null,{"$f":"S53","v":1940},1843,97,0,0]
[null,33,"3.3.90.30.01.00","Orçar/ metodologia AETESP e NBR 13.133","Levantamento topográfico planialtimétrico, visando a medição dos serviços de terraplenagem, drenagem e cascalhamentos previstos em projeto e executados (Detalhar as especificações técnicas)",null,null,null,"m",1000,0,0,0,0,0,0,0,1.94,{"$f":"J53*R53","v":1940},1843,97,0,0]
[null,"SUBTOTAL - ITENS (01,02,03,04,05)",null,null,null,null,null,null,null,null,null,null,null,null,null,null,null,null,{"$f":"S27+S43+S49+S52","v":52913.702850338457},{"$f":"T27+T43+T49+T52","v":50268.017707821542},2645.6851425169234,0,0]
[null,"06 - Mobilização e melhoria ambiental",null,null,null,null,null,null,null,null,null,null,null,{"$f":"CONCATENATE(\"SubTotal \",B55)","v":"SubTotal 06 - Mobilização e melhoria ambiental"},null,null,null,null,{"$f":"S56+S57","v":3703.9591995236924},{"$f":"S55-U55-V55-W55","v":3518.761239547508},{"$f":"S55*$V$3","v":185.19795997618462},0,0]
[null,34,"3.3.90.30.01.00","Deliberação nº 179/2013-CD/DER","Mobilização/ Desmobilização - Obs.:  percentual utilizado é variavel aplicado em cima do subtotal ITENS (01,02,03,04,05) informar  o percentual utilizado- ...%",null,null,null,"%",0.04,0,0,0,0,0,0,0,0,{"$f":"$S$54*J56","v":2116.5481140135385},{"$f":"S56-U56-V56-W56","v":2010.7207083128615},{"$f":"S56*$V$3","v":105.82740570067693},0,0]
[null,35,"3.3.90.30.01.00","Deliberação nº 179/2013-CD/DER","Melhoria ambiental - recuperação de cascalheiras percentual aplicado em cima do subtotal ITENS (01,02,03,04,05) o percentual é fixo, ou seja, 3% (apresentar orçamento no que será aplicado)",null,null,null,"%",0.03,0,0,0,0,0,0,0,0,{"$f":"$S$54*J57","v":1587.4110855101537},{"$f":"S57-U57-V57-W57","v":1508.0405312346461},{"$f":"S57*$V$3","v":79.370554275507686},0,0]
[null,"TOTAIS - GERAL",null,null,null,null,null,null,null,null,null,null,null,null,null,null,{"$f":"Q10+Q27+Q43","v":6273.1121843867495},null,{"$f":"S54+S55","v":56617.662049862149},{"$f":"T54+T55","v":53786.77894736905},{"$f":"U54+U55","v":2830.8831024931078},{"$f":"V54+V55","v":0},{"$f":"W54+W55","v":0}]
[null,"Obs.:"]
[null,"1 - Os quantitativos foram levandados a partir de  projetos técnicos especificos para adequação e ou readequação ou através de metodologia expedita RTV - Relatório Técnico de Vistoria, nos casos de manutenções e ou pequenas melhorias ;                                                                                                                                              \n2 - As operações previstas neste plano de trabalho foram extraidas do orçamento do projeto , parte integrande deste plano de trabalho\n3 - Apresentar memoria de cálculos do TRANSPORTE, melhorias ambientais e da CONTRAPARTIDA FISICA/SERVIÇOS.                                                                                           \n4 - Ex . cod. de orçamento: Obra de Pavimentação de Estrada Rural. 4490.51.04 – Obras e Instalações (51) – Obras Rodoviárias de Domínio Público (04).\n5 - Quando o municipio participar com contrapartida fisica não existe natureza de despesa. Deverá apresentar os memoriais de calculos e qual sera o serviço e/ou bem.                                                                                                                                                                                                                                                                                            6 -  Não cabe aplicação de BDI no caso de repasse de recursos para a aquisição de óleo diesel. "]
[]
[null,null,"Valor Global",null,"SEAB",null,"Contrapartida Município"]
[null,null,"%","(R$)","%","Total (R$)","%","FINANCEIRA R$","FÍSICA"]
[null,null,null,null,null,null,null,null,"SERVIÇOS","BENS"]
[null,null,1,{"$f":"S58","v":56617.662049862149},{"$f":"F65/D65","v":0.95000000000000018},{"$f":"T58","v":53786.77894736905},{"$f":"(H65+I65+J65)/D65","v":5.000000000000001E-2},{"$f":"U58","v":2830.8831024931078},{"$f":"V58","v":0},{"$f":"W58","v":0}]
[]
[]
[null,"[1] O valor unitário deverá ter sido obtido por meio de orçamento devidamente detalhado em planilhas nos termos dos arts. 368 a 372 e dos arts. 484 a 486 do Decreto Estadual 10.086/2022"]
[null,"[2] Art. 669, § 1º. I, II e III, estipulou percentuais fixados de acordo com a capacidade financeira do convenente, com base nos dados do IPARDES"]

{"sheet":"Plan5 3. JUSTIFIC. e 4.BENEFIC.","index":5,"n_rows":32,"n_cols":7,"rows_kept":32,"cut":false,"hidden":false,"merged":[[30,1,30,3],[28,4,28,5],[30,4,30,5],[31,1,31,5],[22,1,22,3],[23,1,23,3],[24,1,24,3],[25,1,25,3],[26,1,26,3],[27,1,27,3],[28,1,28,3],[29,1,29,3],[12,1,12,3],[13,1,13,3],[14,1,14,3],[15,1,15,3],[16,1,16,3],[17,1,17,3],[18,1,18,3],[19,1,19,3],[20,1,20,3],[21,1,21,3],[1,3,1,5],[6,1,6,5],[1,1,1,2],[10,4,10,5],[10,1,11,3],[3,1,3,5]]}
[]
[null,null,null,"PLANO DE TRABALHO\n MELHORIA DA TRAFEGABILIDADE EM ESTRADAS RURAIS MUNICIPAIS\nÓLEO DIESEL com base no RTV - Relatório Técnico de Vistoria e Projetos Técnicos"]
[]
[null,"3. RAZÕES PARA CELEBRAÇÃO - JUSTIFICATIVA"]
[]
[]
[null,"1. Discorrer as razões que justificam a celebração do instrumento, caracterizando (evidenciando) e indicando, entre outras:\na) interesses recíprocos entre a Seab e o Município, e o atendimento da(s) necessidade (s) da comunidade (s) a serem benficiadas;\nb) relação entre a projeto técnico apresentado, operações a serem executadas e objetivos do plano, programa, projeto ou proposta estadual ou municipal;\nc) qualificação do público alvo;\nd) problemas a serem resolvidos; \ne) resultados esperados; \nf)  Índice Desempenho Municipal (IDM/Ipardes) ou IDH - posição do Município em relação à média do Estado, ...;\ng) VBP - Principais produtos, posição do Município em relação à média do Estado, ...;\nh) Proporção de agricultores familiares em relação ao total de produtores/agricultores do município;\ni) Famílias do meio rural abaixo da linha de pobreza e/ou inscritas no CadUnico;\nj) Estrutura fundiário do município;\nk)Outras informações relevantes.\n2. Justificar a relação entre custos e beneficios, do desembolso a ser realizado pela Administração em decorrência do convênio;\n"]
[]
[null,"4. BENEFICIÁRIOS"]
[]
[null,"Nome da(s)  comunidade(s)",null,null,"Quantidade Usuários ( *)"]
[null,null,null,null,"Diretos","Indiretos"]
[null,null,null,null,null,null,{"$f":"IF(B13<>\"\",1,0)","v":0}]
[null,null,null,null,null,null,0]
[null,null,null,null,null,null,0]
[null,null,null,null,null,null,0]
[null,null,null,null,null,null,0]
[null,null,null,null,null,null,0]
[null,null,null,null,null,null,0]
[null,null,null,null,null,null,0]
[null,null,null,null,null,null,0]
[null,null,null,null,null,null,0]
[null,null,null,null,null,null,0]
[null,null,null,null,null,null,0]
[null,null,null,null,null,null,0]
[null,null,null,null,null,null,0]
[null,null,null,null,null,null,0]
[null,null,null,null,null,null,0]
[null,"Total de Comunidades:",null,null,{"$f":"SUM(G13:G28)","v":0}]
[null,"Subtotais - usuários",null,null,{"$f":"SUM(E13:E28)","v":0},{"$f":"SUM(F13:F28)","v":0}]
[null,"Total geral de usuários",null,null,{"$f":"E30+F30","v":0}]
[null,"(*) Os beneficiários diretos são o público-alvo definido, os quais o projeto terá um impacto social direto. Beneficiários indiretos recebem impactos positivos do projeto."]

{"sheet":"Plan 6 5. METAS e 6.ETAPAS","index":6,"n_rows":32,"n_cols":11,"rows_kept":32,"cut":false,"hidden":false,"merged":[[21,2,21,3],[22,2,22,3],[23,2,23,3],[14,2,14,5],[14,6,14,8],[14,9,14,10],[31,2,31,5],[5,6,5,7],[5,8,5,10],[29,2,29,5],[28,2,28,5],[10,1,10,10],[12,2,12,5],[13,2,13,5],[16,2,16,5],[15,2,15,5],[20,2,20,5],[20,1,21,1],[18,2,18,5],[1,1,1,2],[5,1,6,1],[5,2,6,2],[5,3,6,3],[5,4,5,5],[1,3,1,10],[3,1,3,10],[31,9,31,10],[13,6,13,8],[15,6,15,8],[16,6,16,8],[17,6,17,8],[18,6,18,8],[20,6,27,8],[20,9,27,10],[31,6,31,8],[30,6,30,8],[17,9,17,10],[18,9,18,10],[13,9,13,10],[15,9,15,10],[16,9,16,10],[19,2,19,5],[19,6,19,8],[19,9,19,10],[30,2,30,5],[12,9,12,10],[28,6,28,8],[29,6,29,8],[28,9,28,10],[29,9,29,10],[30,9,30,10],[25,2,25,3],[26,2,26,3],[27,2,27,3],[24,2,24,3],[17,2,17,5],[12,6,12,8]]}
[]
[null,null,null,"PLANO DE TRABALHO\n MELHORIA DA TRAFEGABILIDADE EM ESTRADAS RURAIS MUNICIPAIS\nÓLEO DIESEL com base no RTV - Relatório Técnico de Vistoria e Projetos Técnicos"]
[]
[null,"5. DEFINIÇÃO E DETALHAMENTO DAS METAS:"]
[]
[null,"Meta","Natureza Despesa","Descrição","Duração",null,"Indicador Físico",null,"Custo (R$)"]
[null,null,null,null,"Início","Término","Área ","Unid.","Unit./m²","Unit./km","Total (R$)"]
[null,1,"4.4.90.51.00","Aquisição de serviços para a execução do objeto","A partir da Publicação no DIOE",{"$f":"CONCATENATE('Plan2 1.DADOS,2.OBJ e 2.1.Vigên'!D45,\" \",\"meses a partir da publicação no DIOE\")","v":"24 meses a partir da publicação no DIOE"},{"$f":"'Plan3 2.2. QUADRO RESUMO'!M23","v":6000},"m²",{"$f":"K8/G8","v":9.4362770083103573},{"$f":"K8/'Plan3 2.2. QUADRO RESUMO'!G23*1000","v":56617.662049862149},{"$f":"'Plan4 2.3. OPERAÇÕES'!D65","v":56617.662049862149}]
[]
[]
[null,"6. ETAPAS DE EXECUÇÃO - (Metodologia)"]
[]
[null,"Fases","Especificação",null,null,null,"Responsável",null,null,"Parâmetro de aferição"]
[null,1,"Processo de licitação concluído",null,null,null,"Município",null,null,"Homologação da licitação disponibilizada no SIT/TCE"]
[null,null,"Repasse dos recursos",null,null,null,"SEAB",null,null,"Nota de liquidação"]
[null,2,"Contrato de fornecimento formalizado ",null,null,null,"Município",null,null,"Contrato assinado com a empresa vencedora e publicação em diário oficial.  Abertura da CNO"]
[null,3,"Execução dos serviços, de acordo com as operações definidas na tabela 2.3.",null,null,null,"Município",null,null,"Mapas de medições e relatórios fotográficos e filmagens da execução, de acordo com o cronograma de execução (Quadro 9) ."]
[null,4,"Fiscalização do convênio",null,null,null,"SEAB",null,null,"TAF - Termos de Acompanhamento e fiscalização, relatórios bimestrais de execução, possiveis notificações, relatórios fotográficos e filmagens. \nPreenchimento dos dados no SIT/TCE."]
[null,5,"Executar as ações previstas no RTV emitido pelo IDR-PR",null,null,null,"Município",null,null,"Relatórios de execução e relatórios fotográficos e filmagens."]
[null,6,"Fiscalizar a execução das ações previstas no RTV",null,null,null,"SEAB",null,null,"Atestar, por meio de laudo, que os serviços previsto no RTV - Relatório Técnico de Vistoria foram executados. \nPreenchimento dos dados no SIT/TCE."]
[null,7,"Execução do Empreendimento",null,null,null,"Empresa Contratada",null,null,"Executar  os serviços e entregar os materiais nos prazos, conforme pactuado em contrato com o municipio, por meio dos relatórios de medições dos serviços."]
[null,null,"Trechos (completo)",null,"Inicio - (m)","Fim - (m)"]
[null,"7.1","Trecho 1.1 ",null,0,1000]
[null,"7.2","Trecho 1.2 ",null,1001,2000]
[null,"7.3","Trecho 1.3 ",null,2001,3000]
[null,"7.4","Trecho 2.1",null,0,1000]
[null,"7.4","Trecho 2.2 ",null,1001,2000]
[null,"7.6","Trecho 2.3",null,2001,3000]
[null,8,"Prestação de contas parcial e ou final",null,null,null,"Município",null,null,"Relatório de execução fisica, financeira e relatório contábil;"]
[null,9,"Conclusão dos objetivos",null,null,null,"SEAB",null,null,"Emissão do Certificado de Conclusão do Objeto"]
[null,"x","..................."]
[null,"x","..................."]

{"sheet":"Plan7 7. PLA DE APL 8 Cap Int.","index":7,"n_rows":51,"n_cols":13,"rows_kept":51,"cut":false,"hidden":false,"merged":[[1,2,1,6],[6,4,6,6],[3,1,3,6],[19,1,26,1],[6,1,7,1],[6,2,6,3],[15,2,15,3],[19,2,21,2],[12,1,14,1],[19,3,19,7],[20,4,20,6],[20,7,21,7],[7,2,7,3],[8,2,8,3],[29,1,35,6],[38,1,38,7],[39,6,39,7],[39,1,39,3],[39,4,39,5],[28,1,28,6],[20,3,21,3],[12,2,12,6],[13,4,13,6],[13,2,14,3]]}
[]
[null,null,"PLANO DE TRABALHO\n MELHORIA DA TRAFEGABILIDADE EM ESTRADAS RURAIS MUNICIPAIS\nÓLEO DIESEL com base no RTV - Relatório Técnico de Vistoria e Projetos Técnicos"]
[]
[null,"7 - PLANO DE APLICAÇÃO DOS RECURSOS FINANCEIROS"]
[]
[null,"RESUMO DAS METAS",null,null,null,null,null,null,null,null,null,"Pavimentação","Valor Base:"]
[null,"Valor Global","SEAB",null,"Contrapartida Município",null,null,null,null,null,null,{"$f":"'Plan2 1.DADOS,2.OBJ e 2.1.Vigên'!E35","v":"MELHORIAS"},{"$f":"VLOOKUP(L7,'Plan2 1.DADOS,2.OBJ e 2.1.Vigên'!#REF!,2,0)","v":{"$error":"#REF!"}}]
[null,null,"(R$)",null,"Financeira (R$)","Fisica (R$)","Total  (R$)"]
[null,{"$f":"'Plan4 2.3. OPERAÇÕES'!D65","v":56617.662049862149},{"$f":"'Plan4 2.3. OPERAÇÕES'!F65","v":53786.77894736905},null,{"$f":"'Plan4 2.3. OPERAÇÕES'!H65","v":2830.8831024931078},{"$f":"'Plan4 2.3. OPERAÇÕES'!I65+'Plan4 2.3. OPERAÇÕES'!J65","v":0},{"$f":"E9+F9","v":2830.8831024931078}]
[]
[]
[]
[null,"Quantidade de parcelas:","Valor da Parcela"]
[null,null,"SEAB",null,"Contrapartida Município"]
[null,null,null,null,"Financeira (R$)","Fisica (R$)","Total  (R$)"]
[null,null,null,null,{"$f":"ROUNDDOWN(E9/$B$18,2)","v":{"$error":"#REF!"}},{"$f":"F9/$B$18","v":{"$error":"#REF!"}},{"$f":"G9/$B$18","v":{"$error":"#REF!"}}]
[]
[null,{"$f":"IF(C9<=M7,2,IF((C9/M7)>4,4,IF(D18>0,ROUND($C$18,0)+1,C18)))","v":{"$error":"#REF!"}},{"$f":"ROUNDDOWN(C9/M7,0)","v":{"$error":"#REF!"}},{"$f":"MOD(C9,M7)","v":{"$error":"#REF!"}},"Sobra"]
[]
[null,"Parcelas (R$)","Número de Parcelas","Valores (R$)"]
[null,null,null,"SEAB","Município",null,null,"Total Geral"]
[null,null,null,null,"Financeira (R$)","Fisica (R$)","Total  (R$)"]
[null,null,1,{"$f":"C9","v":53786.77894736905},{"$f":"E9","v":2830.8831024931078},{"$f":"F9","v":0},{"$f":"IF(F23=\"\",\"\",E23+F23)","v":2830.8831024931078},{"$f":"IF(G23=\"\",\"\",D23+G23)","v":56617.662049862156}]
[null,null,2,0,0,0,{"$f":"IF(F24=\"\",\"\",E24+F24)","v":0},{"$f":"IF(G24=\"\",\"\",D24+G24)","v":0}]
[null,null,3,0,0,0,{"$f":"IF(F25=\"\",\"\",E25+F25)","v":0},{"$f":"IF(G25=\"\",\"\",D25+G25)","v":0}]
[null,null,4,0,0,0,{"$f":"IF(F26=\"\",\"\",E26+F26)","v":0},{"$f":"IF(G26=\"\",\"\",D26+G26)","v":0}]
[null,null,"Total",{"$f":"SUM(D23:D26)","v":53786.77894736905},{"$f":"SUM(E23:E26)","v":2830.8831024931078},{"$f":"SUM(F23:F26)","v":0},{"$f":"SUM(G23:G26)","v":2830.8831024931078},{"$f":"SUM(H23:H26)","v":56617.662049862156}]
[]
[null,"8. CAPACIDADE INSTALADA DO MUNICÍPIO"]
[null,"a)     Descrever , detalhamento, a composição e formação da equipe técnica e operacional envolvida na execução do objeto, bem como os equipamentos (máquinas, veículos e etc...) disponíveis para tal. Informar se as máquinas e caminhões elencado irão traalhar de forma continua ou não, evitando paralisações ou inexecução dos serviços dentro do cronograma. Preencher o quadro 8.1 Resumo da CAPACIDADE INSTALADA                                                                                                                                                                                                            b)    Descrever, detalhadamente, a forma e frequência do acompanhamento e fiscalização da execução das metas do pactuado através dos  Responsáveis Técnicos do municipio (obrigatório ser servidor publico), disponibilidade de hardware, software  e veiculos."]
[]
[]
[]
[]
[]
[]
[]
[]
[null,"8.1 - Resumo da CAPACIDADE INSTALADA"]
[null,"Máquinas/Veículos",null,null,"Operador/Motorista",null,"Técnicos"]
[null,"Qtde.","Tipo","Estado de conservação","Qtde","Descrição","Qtde.","Descrição"]
[null,null,"Caminhão Basculante",null,null,"Operador de máquinas pesadas",null,"Eng. Civil"]
[null,null,"Caminhão Prancha",null,null,"Motorista de caminhão",null,"Eng. Agrônomo"]
[null,null,"Caminhão comboio",null,null,"Motorista de veículos de apoio",null,"Topógrafo"]
[null,null,"Escavadeira hidráulica",null,null,"Mecânico",null,"Técnico Agrimensor/Agrícola"]
[null,null,"Motoniveladora"]
[null,null,"Pá carregadeira"]
[null,null,"Retroescavadeira"]
[null,null,"Rolo compactador"]
[null,null,"Trator de esteira"]
[null,null,"veiculo para a equipe técnica"]

{"sheet":"Plan8 9.PREVISÃO e10 CRONOGRAM","index":8,"n_rows":27,"n_cols":12,"rows_kept":27,"cut":false,"hidden":false,"merged":[[6,8,6,11],[5,2,6,4],[6,5,6,7],[5,5,5,11],[7,8,7,11],[7,2,7,4],[7,5,7,7],[15,2,15,4],[14,8,14,11],[15,8,15,11],[15,5,15,7],[14,5,14,7],[14,2,14,4],[11,8,11,11],[12,8,12,11],[13,8,13,11],[10,8,10,11],[10,5,10,7],[11,5,11,7],[12,5,12,7],[13,5,13,7],[8,8,8,11],[9,8,9,11],[24,11,24,13],[23,2,23,13],[18,1,18,13],[19,1,19,13],[24,2,24,4],[24,5,24,7],[24,8,24,10],[17,2,17,4],[10,2,10,4],[11,2,11,4],[16,2,16,4],[9,2,9,4],[9,5,9,7],[8,2,8,4],[8,5,8,7],[1,2,1,13],[12,2,12,4],[26,11,26,13],[25,2,25,4],[25,5,25,7],[25,8,25,10],[26,2,26,4],[26,5,26,7],[26,8,26,10],[25,11,25,13],[16,8,16,11],[17,8,17,11],[16,5,16,7],[17,5,17,7],[13,2,13,4]]}
[]
[null,null,"PLANO DE TRABALHO\n MELHORIA DA TRAFEGABILIDADE EM ESTRADAS RURAIS MUNICIPAIS\nÓLEO DIESEL com base no RTV - Relatório Técnico de Vistoria e Projetos Técnicos"]
[null,"9 - CRONOGRAMA DE EXECUÇÃO"]
[]
[]
[null,null,"Atividades",null,null,"Período de Execução"]
[null,null,null,null,null,"Início",null,null,"Final"]
[null,null,"Licitação",null,null,"A partir da publicação no DIOE",null,null,"até 03 meses após a publicação"]
[null,null,"Contratação",null,null,"XX meses após a publicação",null,null,"XX meses após a publicação"]
[null,null,"Fiscalização",null,null,"XX meses após a publicação",null,null,"XX meses após a publicação"]
[null,null,{"$f":"'Plan 6 5. METAS e 6.ETAPAS'!C23:D23","v":"Trecho 1.1 "},null,null,"XX meses após a publicação",null,null,"XX meses após a publicação"]
[null,null,{"$f":"'Plan 6 5. METAS e 6.ETAPAS'!C24:D24","v":"Trecho 1.2 "},null,null,"XX meses após a publicação",null,null,"XX meses após a publicação"]
[null,null,{"$f":"'Plan 6 5. METAS e 6.ETAPAS'!C25:D25","v":"Trecho 1.3 "},null,null,"XX meses após a publicação",null,null,"XX meses após a publicação"]
[null,null,{"$f":"'Plan 6 5. METAS e 6.ETAPAS'!C26:D26","v":"Trecho 2.1"},null,null," XX meses após a publicação",null,null," XX meses após a publicação"]
[null,null,{"$f":"'Plan 6 5. METAS e 6.ETAPAS'!C27:D27","v":"Trecho 2.2 "},null,null," XX meses após a publicação",null,null," XX meses após a publicação"]
[null,null,{"$f":"'Plan 6 5. METAS e 6.ETAPAS'!C28:D28","v":"Trecho 2.3"},null,null," XX meses após a publicação",null,null," XX meses após a publicação"]
[null,null,{"$f":"'Plan 6 5. METAS e 6.ETAPAS'!C29:D29","v":"Prestação de contas parcial e ou final"},null,null," XX meses após a publicação",null,null," XX meses após a publicação"]
[null,null,{"$f":"'Plan 6 5. METAS e 6.ETAPAS'!C30:D30","v":"Conclusão dos objetivos"},null,null," XX meses após a publicação",null,null," XX meses após a publicação"]
[null,"Todas as atividades serão objeto de fiscalização da SEAB/DEAGRO E MUNICIPIO"]
[null,"Para efeito de comprovação de execução parcial e/ou total da obra junto à fiscalização da SEAB/DEAGRO, será considerado o parâmetro de 300 a 500 metros por mês (1.000 metros / trimestre), efetivamento concluida todas as operações pactuadas."]
[]
[null,"10 - CRONOGRAMA DE DESEMBOLSO"]
[]
[null,"Metas ","Parcelas (R$) "]
[null,"Prazo","A partir da conclusão do processo de licitação",null,null,"....meses",null,null,"... meses",null,null,"... meses"]
[null,"SEAB",{"$f":"'Plan7 7. PLA DE APL 8 Cap Int.'!D23","v":53786.77894736905},null,null,{"$f":"'Plan7 7. PLA DE APL 8 Cap Int.'!D24","v":0},null,null,{"$f":"'Plan7 7. PLA DE APL 8 Cap Int.'!D25","v":0},null,null,{"$f":"'Plan7 7. PLA DE APL 8 Cap Int.'!D26","v":0}]
[null,"Município",{"$f":"'Plan7 7. PLA DE APL 8 Cap Int.'!E23","v":2830.8831024931078},null,null,{"$f":"'Plan7 7. PLA DE APL 8 Cap Int.'!E24","v":0},null,null,{"$f":"'Plan7 7. PLA DE APL 8 Cap Int.'!E25","v":0},null,null,{"$f":"'Plan7 7. PLA DE APL 8 Cap Int.'!G26","v":0}]

{"sheet":"Plan 09.11MONIT_AVALIA_P.CONTAS","index":9,"n_rows":17,"n_cols":3,"rows_kept":17,"cut":false,"hidden":false,"merged":[[1,2,1,11],[13,1,13,11],[16,1,16,11],[6,1,6,11],[15,1,15,11],[14,1,14,11],[10,1,10,11],[11,1,11,11],[12,1,12,11],[3,1,3,11],[5,1,5,11],[7,1,7,11],[8,1,8,11],[9,1,9,11],[4,1,4,11]]}
[]
[null,null,"PLANO DE TRABALHO\n MELHORIA DA TRAFEGABILIDADE EM ESTRADAS RURAIS MUNICIPAIS\nÓLEO DIESEL com base no RTV - Relatório Técnico de Vistoria e Projetos Técnicos"]
[]
[null,"11. OBRIGAÇÕES"]
[null,"DO MONITORAMENTO, AVALIAÇÃO E DA PRESTAÇÃO DE CONTAS "]
[null,"1. O CONVENENTE TOMADOR realizará a prestação de contas através do Sistema Integrado de Transferências do TCE (SIT) conforme previsões das resoluções nº 28/2011, 46/2014 e a Instrução Normativa 61/2011 e as Cláusulas do Convênio"]
[null,"2.  Cópia de ata da homologação do processo licitatório, contrato, CNO - Cadastro Nacional de Obras, licença ambiental do fornecedor ( pedreira)  do material a ser utilizado na pavimentação."]
[null,"3. O CONVENENTE TOMADOR, apresentará as informações dos resultados alcançados sob os aspectos técnicos e financeiros obtidos com a execução do objeto da parceria na seguinte forma e periodicidade:"]
[null,"3.1)    Bimestralmente, anualmente, a cada liberação de parcela (R$)e após a Conclusão do Convênio  por meio de: "]
[null,"a.  Relatório de Execução do Objeto (PARCIAL E FINAL): documento que descreverá as atividades desenvolvidas, comparativo das metas propostas e resultados alcançados, acompanhado do respectivo material comprobatório. ( mapas de medição e notas fiscais comprobatórias, fotos e filmagens)"]
[null,"b.  Relatório de Execução Financeira (PARCIAL E FINAL): documento que relaciona os pagamentos efetuados em face das despesas previstas neste Plano de Trabalho e a conciliação bancária aferida pela correlação entre despesas constantes na relação de pagamentos e os débitos efetuados na conta corrente específica da parceria e devidos nexos de causalidade entre umas e outras, sua conformidade e o cumprimento das normas pertinentes."]
[null,"c.  Cópia do Extratos Bancários (conta aplicação e conta corrente);"]
[null,"d. Devera ser encaminhado a SEAB a CND a obra, até 30 (trinta) dias após a conclusão da execução do objeto do convênio, previsto no projeto e plano de trabalho;"]
[null,"e.  Comprovante de recolhimento de saldo ao Tesouro Estadual (se necessário ou houver)"]
[null,"4. O CONCEDENTE - deverá efetuar fiscalização bimenstralmente e ou quando necessário, gerando  TAF - Termo de Acompanhamento e Fiscalização, e se for o caso folha de informação. "]
[null,"a . Quando da fiscalização da SEAB, for verificado inconformidades, devera o fiscal informar o gestor passando a este cópia do TAF - Termo de acompanhamento e fiscalização para que o gestor tome as providencias necessárias, ou seja, proceder a notificação ao Tomador (municipio). "]
[null,"b. O envio dos documentos (TAFs, folha de informação da Divisão de Apoio Técnico do DEAGRO/SEAB, e notificações) e relatórios previstos no item 3 será feito de forma eletrônica através do e-protocolo, deverá ser enviado ao NUCONV para anexar ao e-protocolo do termo de convênio."]

{"sheet":"Planilha10  12.DOC_INTEGR_PT ","index":10,"n_rows":24,"n_cols":3,"rows_kept":24,"cut":false,"hidden":false,"merged":[[3,1,3,3],[1,2,1,3],[4,1,4,3],[5,1,5,3],[6,1,6,3],[7,1,7,3],[8,1,8,3],[9,1,9,3],[10,1,10,3],[11,1,11,3],[12,1,12,3],[13,1,13,3],[14,1,14,3],[15,1,15,3],[16,1,16,3],[22,1,22,3],[23,1,23,3],[17,1,17,3],[18,1,18,3],[19,1,19,3],[20,1,20,3],[21,1,21,3]]}
[]
[null,null,"PLANO DE TRABALHO\n MELHORIA DA TRAFEGABILIDADE EM ESTRADAS RURAIS MUNICIPAIS\nÓLEO DIESEL com base no RTV - Relatório Técnico de Vistoria e Projetos Técnicos"]
[]
[null,"12. DOCUMENTOS INTEGRANTES DO PLANO DE TRABALHO "]
[null,"12.1 Descrição do Documento"]
[null,"a) Declaração de Contrapartida (FISICA OU FINANCEIRA ) no valor de R$."]
[null,"b) Orçamentos devidamente detalhado em planilha nos termos dos arts.368 a 372 e dos atrs. 484 a 486 do decreto Estadual 10.086/2022."]
[null,"C) Outros documentos necessários para execução do objeto (Caracterizar os documentos)"]
[]
[null,"12.2 PARA OBRAS OU SERVIÇOS DE ENGENHARIA E ARQUITETURA "]
[null,"a) Projeto Básico e/ou Executivo da Obra "]
[null,"Projeto Geotécnico,"]
[null,"Projeto topográfico, "]
[null,"Projeto terraplanagem, "]
[null,"Projeto de Drenagem, (quando indicado  no RTV),"]
[null,"Projeto de Pavimentação, "]
[null,"Projeto de Sinalização horizontal e vertical (para asfalto),"]
[null,"Memoriais de cálculos, (DMT, BDI,.....)"]
[null,"Memorial descritivo, "]
[null,"b) Planilha de Custos da Obra (expressando a composição dos custos unitários ou fundamentado em quantitativos de obras, serviços)."]
[null,"c) Anotações e/ou Registros de Responsabilidade Técnica de ELABORAÇÃO, FISCALIZAÇÃO  e  EXECUÇÃO dos projetos e orçamentos, dos respectivos conselhos de classe CAU E OU CREA."]
[null,"d) Apresentação da CNO – CERTIDÃO NEGATIVA DE DA OBRA  (apresentar logo após o homologação da licitação e assinatura do contrato),"]
[null,"e) Relatório de impactos ambientais e/ou licenças ambientais, quando exigido pelos órgãos competentes (se houver ) ."]
[null,"f) Apresentar cópia do plano diretor do municipio, com o mapa  do sistema viário rural contemplando, a estrada a ser pavimentada, não serão aceitos trechos estradas dentro de perimetro urbano. Na ausencia deste, apresentar documento oficial da posse e da área de dominio da estrada, e anuência  nos casos de estradas a serem trabalhadas pertencer a União ou Estado."]

{"sheet":"Plan11 10. ASSINATURAS","index":11,"n_rows":78,"n_cols":15,"rows_kept":78,"cut":false,"hidden":false,"merged":[[31,2,31,7],[31,8,31,10],[34,1,34,10],[36,2,36,7],[1,3,1,10],[1,1,1,2],[10,2,10,7],[10,8,10,10],[12,1,12,10],[14,1,14,10],[15,2,15,7],[3,1,3,10],[5,1,5,10],[6,2,6,7],[6,8,9,10],[7,2,7,7],[8,5,8,7],[9,2,9,7],[15,8,20,10],[16,2,16,7],[17,1,17,4],[17,5,17,7],[18,2,18,7],[19,2,19,7],[20,2,20,7],[21,2,21,7],[21,8,21,10],[25,1,25,10],[27,2,27,7],[27,8,30,10],[28,2,28,7],[29,2,29,7],[30,2,30,7],[36,8,39,10],[37,2,37,7],[38,2,38,7],[39,2,39,7],[40,2,40,7],[40,8,40,10],[47,1,47,2],[47,3,47,10],[49,1,49,10],[51,1,51,10],[53,1,53,10],[55,1,57,6],[58,1,58,6],[60,1,60,10],[62,1,64,6],[65,1,65,6],[77,1,77,6],[66,1,66,6],[69,1,69,10],[71,1,71,10],[73,1,75,6],[76,1,76,6]]}
[]
[null,null,null,"PLANO DE TRABALHO\n MELHORIA DA TRAFEGABILIDADE EM ESTRADAS RURAIS MUNICIPAIS\nÓLEO DIESEL com base no RTV - Relatório Técnico de Vistoria e Projetos Técnicos"]
[]
[null,"13. DECLARAÇÃO DO RESPONSÁVEL TÉCNICO PELO PLANO DE APLICAÇÃO FINANCEIRA"]
[]
[null,"Declaro, para fins de prova junto à SEAB, estar de acordo com o plano de aplicação dos recursos deste Plano de Trabalho."]
[null,"Nome:",null,null,null,null,null,null,"__________________________"]
[null,"Cargo:","CONTADOR"]
[null,"N.º Registro Conselho de Classe:",null,null,null,"CRC: xxxx"]
[null,"Local:","XXXXXX"]
[null,"Data:"," __ /__ /2023",null,null,null,null,null,"Assinatura"]
[]
[null,"14. RESPONSÁVEL TÉCNICO PELA ELABORAÇÃO DO PLANO DE TRABALHO"]
[]
[null,{"$f":"CONCATENATE(N15,N16)","v":"O presente Plano de Trabalho foi por mim elaborado de acordo com as normas técnicas aplicáveis e está compatível com as prioridades de atendimento da agricultura familiar e com os recursos financeiros destinados pelo Projeto de Pavimentação com MELHORIAS"},null,null,null,null,null,null,null,null,null,null,null,"O presente Plano de Trabalho foi por mim elaborado de acordo com as normas técnicas aplicáveis e está compatível com as prioridades de atendimento da agricultura familiar e com os recursos financeiros destinados pelo Projeto de Pavimentação com "]
[null,"Nome:",null,null,null,null,null,null,"__________________________",null,null,null,null,{"$f":"'Plan2 1.DADOS,2.OBJ e 2.1.Vigên'!E35","v":"MELHORIAS"}]
[null,"Cargo:","ENGENHEIRO (a) CIVIL"]
[null,"N.º Registro Conselho de Classe:",null,null,null,"CREA PRXXXXX/D"]
[null,"Local:","XXXXXX"]
[null,"Nº telefone"]
[null,"e-mail"]
[null,"Data:"," __ /__ /2023",null,null,null,null,null,"Assinatura"]
[]
[]
[]
[null,"15. APROVAÇÃO DO PREFEITO"]
[]
[null,"Nome:",{"$f":"'[1]Plan2 1.DADOS,2.OBJ e 2.1.Vigên'!C15:I15","v":"XXXXXXXXX"},null,null,null,null,null,"__________________________"]
[null,"Cargo:","PREFEITO MUNICIPAL"]
[null,"CPF (LGPD):",{"$f":"'[1]Plan2 1.DADOS,2.OBJ e 2.1.Vigên'!C16:D16","v":"XXXXXXXXX"}]
[null,"Local:",{"$f":"'[1]Plan2 1.DADOS,2.OBJ e 2.1.Vigên'!C6:I6","v":"XXXXXXXXXXX"}]
[null,"Data:"," __ /__ /2023",null,null,null,null,null,"Assinatura"]
[null,"LGPD - Lei Geral de Proteção de Dados Pessoais, Lei nº 13.709/2018,"]
[]
[null,"16 - ASSINATURA DO GESTOR DO CONVÊNIO PELA SEAB (Chefe do NR)"]
[]
[null,"Nome:","XXXXXXXXXXXXXXX",null,null,null,null,null,"__________________________"]
[null,"Cargo","CHEFE DO NÚCLEO REG. SEAB/XXXXXX"]
[null,"CPF (LGPD):","XXXXXXXXXXXXXXX"]
[null,"Local:","XXXXXXXXXXXXXXX"]
[null,"Data:"," __ /__ /2023",null,null,null,null,null,"Assinatura"]
[null,"LGPD - Lei Geral de Proteção de Dados Pessoais, Lei nº 13.709/2018,"]
[]
[]
[]
[]
[]
[null,null,null,"PROGRAMA ESTRADAS DA INTEGRAÇÃO  PROJETO DE ADEQUAÇÃO, READEQUAÇÃO, MAUTENÇÃO E OU MELHORIAS DE ESTRADAS RURAIS MUNICIPAIS - CUSTEIO SOMENTE ÓLEO DIESEL COM BASE EM  RTV - Relatório Técnico de Vistoria e Projetos Técnicos"]
[]
[null,"17.  MANIFESTAÇÃO TÉCNICA DO DEAGRO – SEDE"]
[]
[null,"Atestamos, para os devidos fins, que este Plano de Trabalho se encontra em condições técnicas para a sua aprovação pelo Sr. Secretário da Agricultura e do Abastecimento."]
[]
[null,"17.1. Técnico do DEAGRO-Sede."]
[]
[null,"________________________________________"]
[]
[]
[null,"(Assinatura: nome, registro no conselho de classe)",null,null,null,null,null,null,"Curitiba,  __ /__ /2023"]
[]
[null,"17.2. Chefe do Departamento de Desenvolvimento Rural Sustentável - DEAGRO."]
[]
[null,"______________________________________"]
[]
[]
[null,"Márcio da Silva",null,null,null,null,null,null,"Curitiba,  __ /__ /2023"]
[null,"CREA-SC 7.857/D"]
[]
[]
[null,"18. APROVAÇÃO DA SEAB"]
[]
[null,{"$f":"CONCATENATE(O72,N16,O73)","v":"Aprovamos, para os devidos fins, este Plano de Trabalho por encontrar-se em conformidade com as diretrizes do Projeto de Pavimentação com MELHORIAS, estando apto para sua efetivação via convênio."},null,null,null,null,null,null,null,null,null,null,null,null,"Aprovamos, para os devidos fins, este Plano de Trabalho por encontrar-se em conformidade com as diretrizes do Projeto de Pavimentação com "]
[null,null,null,null,null,null,null,null,null,null,null,null,null,null,", estando apto para sua efetivação via convênio."]
[null,"________________________________________"]
[]
[]
[null,"Secretário de Estado da Agricultura e do Abastecimento.",null,null,null,null,null,null,"Curitiba,  __ /__ /2023"]
[null,"Norberto Anacleto Ortigara"]

{"sheet":"Municipios","index":12,"n_rows":400,"n_cols":9,"rows_kept":400,"cut":false,"hidden":true,"merged":[]}
["Município","Índice IPARDES 2020","Contrapartida Mínima","Núcleo Regional","CNPJ","Credor","Endereço Prefeitura","Cep Prefeitura","Prefeito"]
["Abatiá",0.65156887470375802,"5%","Cornélio Procópio","75.743.567/0001-57",214799,"Av. João Carvalho Mello, 135, Centro","86.460-000","Nelson Garcia Junior"]
["Adrianópolis",0.67694205309987032,"5%","Curitiba","76.105.642/0001-17",102344,"Av. Marechal Mascarenhas de Morães, 115, Centr","83.490-000","Vandir de Oliveira Rosa"]
["Agudos do Sul",0.59952607767340782,"5%","Curitiba","76.105.667/0001-10",147555,"Av. Brasil, 38, Centro","83.850-000","Jesse da Rocha Zoellner"]
["Almirante Tamandaré",0.62274965975053653,"5%","Curitiba","76.105.659/0001-74",119789,"Av. Emílio Jonhson, 360, Centro","83.501-000","Gerson Denilson Colodel"]
["Altamira do Paraná",0.75979605378002935,"10%","Campo Mourão","78.069.143/0001-47",119790,"R. Cantú, 180, Centro","85.280-000","José Etevaldo de Oliveira"]
["Altônia",0.7319672363408416,"10%","Umuarama","81.478.059/0001-91",119791,"R. Rui Barbosa, 815, Centro","87.550-000","Claudenir Gervasone"]
["Alto Paraíso",0.73644605393649287,"10%","Umuarama","95.640.736/0001-30",119792,"Av. Pedro Amaro dos Santos, 900, Centro","87.528-000","Dércio Jardim Junior"]
["Alto Paraná",0.72169884790600802,"10%","Paranavaí","76.279.967/0001-16",119793,"R. José Anchieta, 1641, Centro","87.750-000","Claudemir Joia Pereira"]
["Alto Piquiri",0.68806261268678703,"5%","Umuarama","76.247.352/0001-08",122329,"R. Santos Dumont, 341, Centro","87.580-000","Giovane Mendes de Carvalho"]
["Alvorada do Sul",0.72884290028046417,"10%","Londrina","75.132.860/0001-88",119794,"Praça Prefeito Antonio de Souza Lemos, 32, Centro","86.150-000","Marcos Antonio Voltarelli"]
["Amaporã",0.72773860879650831,"10%","Paranavaí","75.475.038/0001-10",119795,"R. Sete de Setembro, 21, Centro","87.850-000","Mauro Lemos"]
["Ampére",0.79242883390217855,"10%","Francisco Beltrão","77.817.054/0001-79",122333,"R. Maringá, 279, Centro","85.640-000","Disnei Luquini"]
["Anahy",0.74878808565617916,"10%","Cascavel","95.594.800/0001-94",147565,"R. Vereador Leonardo Aparecido Dobicz, 591, Centro","85.425-000","Carlos Antonio Reis"]
["Andirá",0.70302295931428371,"10%","Cornélio Procópio","76.235.761/0001-94",119796,"R. Mauro Cardoso de Oliveira, 190, Jardim Vesper","86.380-000","Ione Elisabeth Alves Abib"]
["Ângulo",0.75181460212779694,"10%","Maringá","95.642.286/0001-15",122334,"Av. Valério Osmar Estevão, 72, Centro","86.755-000","Rogerio Aparecido Bernardo"]
["Antonina",0.54425355601085423,"5%","Paranaguá","76.022.516/0001-07",119797,"R. Xv de Novembro, 150, Centro","83.370-000","José Paulo Vieira Azim"]
["Antônio Olinto",0.72139733380136928,"10%","União da Vitória","76.020.460/0001-43",122335,"Av. Reinaldo Machiavelli, 202, Centro","83.980-000","Alan Jaros"]
["Apucarana",0.76597466912491996,"10%","Apucarana","75.771.253/0001-68",119798,"Praça Centro Cívico José de Oliveira Rosa, 25, Centro","86.800-235","Sebastião Ferreira Martins Junior"]
["Arapongas",0.77865661156318799,"10%","Apucarana","76.958.966/0001-06",119799,"R. Garças, 750, Centro","86.700-285","Sergio Onofre da Silva"]
["Arapoti",0.75324479838174396,"10%","Ponta Grossa","75.658.377/0001-31",119800,"R. Placídio Leite, 148, Centro Cívico","84.990-000","Irani Jose Barros"]
["Arapuã",0.68536611665661062,"5%","Ivaiporã","01.612.388/0001-44",119801,"R. Presidente Café Filho, 1410, Recanto Feliz","86.884-000","Deodato Matias"]
["Araruna",0.75549982704991392,"10%","Campo Mourão","75.359.760/0001-99",119802,"Praça Nossa Senhora do Rocio, 390, Centro","87.260-000","Leandro Cesar de Oliveira"]
["Araucária",0.79687988420371525,"10%","Curitiba","76.105.535/0001-99",119803,"R. Pedro Druszcz, 111, Centro","83.702-080","Hissam Hussein Dehaini"]
["Ariranha do Ivaí",0.68670922233389398,"5%","Ivaiporã","01.612.453/0001-31",119804,"R. Miguel Verenka, 14, Centro","86.880-000","Thiago Epifanio da Silva"]
["Assaí",0.75028779552968483,"10%","Cornélio Procópio","76.290.709/0001-30",119805,"Av. Rio de Janeiro, 720, Centro","86.220-000","Michel Angelo Bomtempo"]
["Assis Chateaubriand",0.74876255259379121,"10%","Toledo","76.208.479/0001-18",119806,"Av. Cívica, S/N","85.935-000","Valter Aparecido Souza Correia"]
["Astorga",0.76111959166889542,"10%","Maringá","75.743.377/0001-30",119807,"Av. Doutor José Soares de Azevedo, 48, Centro","86.730-000","Suzie Aparecida Pucillo Zanatta"]
["Atalaia",0.79664572656162169,"10%","Maringá","75.731.018/0001-62",122336,"Praça José Bento dos Santos, 02, Centro","87.630-000","Carlos Eduardo Armelin Mariani"]
["Balsa Nova",0.74159844780144535,"10%","Curitiba","76.105.527/0001-42",147583,"Av. Brasil, 665, Centro","83.650-000","Marcos Antonio Zanetti"]
["Bandeirantes",0.72888980815944848,"10%","Cornélio Procópio","76.235.753/0001-48",147584,"R. Frei Rafael Proner, 1457, Centro","86.360-000","Jaelson Ramalho Matta"]
["Barbosa Ferraz",0.72394198674202526,"10%","Campo Mourão","76.950.062/0001-26",119808,"Av. Presidente Kennedy, 363, Centro","86.960-000","Edenilson Aparecido Miliossi"]
["Barracão",0.75035563157515439,"10%","Francisco Beltrão","75.666.131/0001-01",122337,"R. São Paulo, 235, Centro","85.700-000","Jorge Luiz Santin"]
["Barra do Jacaré",0.67060903558059148,"5%","Jacarezinho","76.407.568/0001-93",119809,"R. Rui Barbosa, 96, Centro","86.385-000","Edimar de Freitas Alboneti"]
["Bela Vista da Caroba",0.71726117128956146,"10%","Francisco Beltrão","01.612.441/0001-07",119810,"Av. Rio de Janeiro, 1021, Centro","85.745-000","Gelson Maffi"]
["Bela Vista do Paraíso",0.68825708706554167,"5%","Londrina","76.245.067/0001-58",119811,"R. Joaquim Ladeia, 150, Centro","86.130-000","Fabricio Pastore"]
["Bituruna",0.72321636674562118,"10%","União da Vitória","81.648.859/0001-03",119812,"Av. Doutor Oscar Geyer, 489, Centro","84.640-000","Rodrigo Rossoni"]
["Boa Esperança",0.78434339573367706,"10%","Campo Mourão","76.217.017/0001-67",119813,"Av. Brasil, 361, Centro","87.390-000","Joel Celso Buscariol"]
["Boa Esperança do Iguaçu",0.77916169978517102,"10%","Dois Vizinhos","95.589.255/0001-48",122338,"R. Demétrio Pinzon, 16, Centro","85.680-000","Givanildo Trumi"]
["Boa Ventura de São Roque",0.73364251410803216,"10%","Pitanga","01.612.906/0001-20",119814,"R. Moisés Miranda, 422, Centro","85.225-000","Edson Flavio Hoffmann"]
["Boa Vista da Aparecida",0.73457873448300104,"10%","Cascavel","78.121.985/0001-09",122339,"Av. Cícero Barbosa Sobrinho, 1190, Centro","85.780-000","Leonir Antunes dos Santos"]
["Bocaiúva do Sul",0.62722485147751594,"5%","Curitiba","76.105.592/0001-78",133465,"R. Carlos Alberto Ribeiro, 21, Centro","83.450-000","Antonio Luiz Gusso"]
["Bom Jesus do Sul",0.66430500909854873,"5%","Francisco Beltrão","01.612.443/0001-04",119815,"Av. Ipiranga, 72, Centro","85.708-000","Helio José Surdi"]
["Bom Sucesso",0.69514365131639977,"5%","Apucarana","75.771.261/0001-04",120030,"Praça Paraná, 77, Centro","86.940-000","Raimundo Severiano de Almeida Junior"]
["Bom Sucesso do Sul",0.80635956745034199,"10%","Pato Branco","80.874.100/0001-86",119816,"R. Cândido Merlo, 290, Centro","85.515-000","Nilson Antonio Feversani"]
["Borrazópolis",0.72922723440878157,"10%","Ivaiporã","75.740.829/0001-20",119817,"Praça da República, 28, Centro","86.925-000","Dalton Fernandes Moreira"]
["Braganey",0.69813538615664239,"5%","Cascavel","78.121.902/0001-73",119818,"Av. Arthur Pereira, 860, Centro","85.430-000","Odair Guerreiro Oliveira"]
["Brasilândia do Sul",0.67497690230642504,"5%","Umuarama","95.640.520/0001-75",119819,"Av. Adão Arcângelo Dal Bem, 882, Centro","87.595-000","Alex Antonio Cavalcante"]
["Cafeara",0.75899578336713036,"10%","Londrina","75.845.545/0001-06",119820,"Av. Brasil, 188, Centro","86.640-000","Elton Fabio Lazaretti"]
["Cafelândia",0.81110012637107853,"10%","Cascavel","78.121.878/0001-72",119821,"R. Vereador Luiz Picolli, 299, Centro","85.415-000","Culestino Kiara"]
["Cafezal do Sul",0.71491924689428876,"10%","Umuarama","95.640.652/0001-05",119822,"Av. Ítalo Orcelli, 604, Centro","87.565-000","Mario Junio Kazuo da Silva"]
["Califórnia",0.68143697465036246,"5%","Apucarana","75.771.279/0001-06",119823,"R. 17 de Dezembro, 149, Centro","86.820-000","Paulo Wilson Mendes"]
["Cambará",0.72563545195328139,"10%","Jacarezinho","75.442.756/0001-90",122340,"Av. Brasil, 1229, Centro","86.390-000","José Salim Haggi Neto"]
["Cambé",0.75470936792937771,"10%","Londrina","75.732.057/0001-84",122341,"R. Otto Gaertner, 65, Centro","86.181-900","Conrado Angelo Scheller"]
["Cambira",0.7692083322017963,"10%","Apucarana","75.771.287/0001-52",122342,"Av. Canadá, 320, Centro","86.890-000","Emerson Toledo Pires"]
["Campina da Lagoa",0.71316804892033814,"10%","Campo Mourão","76.950.070/0001-72",119824,"R. Vereador Homero Franco, 851, Centro","87.345-000","Milton Luiz Alves"]
["Campina do Simão",0.67460462779167774,"5%","Guarapuava","01.611.489/0001-09",119825,"R. José Pedro Seleme, 3516, Centro","85.148-000","Andre Junior de Paula"]
["Campina Grande do Sul",0.69419796014031443,"5%","Curitiba","76.105.600/0001-86",147471,"Praça Bento Munhoz da Rocha Neto, 30, Centro","83.430-000","Bihl Elerian Zanetti"]
["Campo Bonito",0.72311020422472916,"10%","Cascavel","80.869.621/0001-45",119826,"R. Prefeito Darcísio Roberto Grassi, 252, Centro","85.450-000","Mario Weber"]
["Campo do Tenente",0.68309608413853429,"5%","Curitiba","76.002.658/0001-02",147618,"Av. Miguel Komarchewski, 900, Centro","83.870-000","Weverton Willian Vizentin"]
["Campo Largo",0.72784172986176399,"10%","Curitiba","76.105.618/0001-88",119827,"Av. Padre Natal Pigatto, 925, Vila Bancária","83.601-630","Mauricio Roberto Rivabem"]
["Campo Magro",0.70931998250250283,"10%","Curitiba","01.607.539/0001-76",131883,"Rodovia Gumercindo Boza, 2823, Centro","83.535-000","Claudio Cesar Casagrande"]
["Campo Mourão",0.80639335996686012,"10%","Campo Mourão","75.904.524/0001-06",119828,"R. Brasil, 1487, Centro","87.301-140","Tauillo Tezelli"]
["Cândido de Abreu",0.63956221059331009,"5%","Pitanga","76.175.926/0001-80",120031,"Av. Paraná, 3, Centro","84.470-000","Renan Menck Romanichen"]
["Candói",0.68935167469663039,"5%","Guarapuava","95.684.478/0001-94",119829,"R. Xv de Novembro, 1761, Centro","85.140-000","Aldoino Goldoni Filho"]
["Cantagalo",0.68301525625250781,"5%","Guarapuava","78.279.981/0001-45",119830,"R. Cinderela, 379, Centro","85.160-000","João Konjunski"]
["Capanema",0.78483916462317138,"10%","Francisco Beltrão","75.972.760/0001-60",119831,"Av. Pedro Viriato Parigot de Souza, 1080, Cent","85.760-000","Américo Bellé"]
["Capitão Leônidas Marques",0.74824791408530578,"10%","Cascavel","76.208.834/0001-59",122343,"Av. Trancredo Neves, 502, Centro","85.790-000","Maxwell Scapini"]
["Carambeí",0.77678378125159675,"10%","Ponta Grossa","01.613.765/0001-60",119832,"Av. do Ouro , 1335, Nova Carambeí","84.145-000","Elisangela Pedroso de Oliveira Nunes"]
["Carlópolis",0.66550417129009676,"5%","Jacarezinho","76.965.789/0001-87",119833,"R. Benedito Salles, 1060, Centro","86.420-000","Hiroshi Kubo"]
["Cascavel",0.80848726275767646,"10%","Cascavel","76.208.867/0001-07",119834,"R. Paraná, 5000, Centro","85.810-011","Leonaldo Paranhos da Silva"]
["Castro",0.73248819740619719,"10%","Ponta Grossa","77.001.311/0001-08",119835,"Praça Pedro Kaled, 22, Centro","84.165-540","Moacyr Elias Fadel Junior"]
["Catanduvas",0.71058623126847154,"10%","Cascavel","76.208.842/0001-03",119836,"Av. dos Pioneiros, 500, Centro","85.470-000","Moises Aparecido de Souza"]
["Centenário do Sul",0.74054890953530605,"10%","Londrina","75.845.503/0001-67",122344,"Praça Aurélio Basso, 378, Centro","86.630-000","Melquiades Tavian Junior"]
["Cerro Azul",0.61483379315417364,"5%","Curitiba","76.105.626/0001-24",214805,"R. Barão do Cerro Azul, 63, Centro","83.570-000","Patrik Magari"]
["Céu Azul",0.7533652788113141,"10%","Cascavel","76.206.473/0001-01",119837,"Av. Nilo Umberto Deitos, 1426, Centro","85.840-000","Laurindo Sperotto"]
["Chopinzinho",0.78525304497802306,"10%","Pato Branco","76.995.414/0001-60",119838,"R. Miguel Procópio Kurpel, 3811, São Miguel","85.560-000","Edson Luiz Cenci"]
["Cianorte",0.79018722755129467,"10%","Cianorte","76.309.806/0001-28",122345,"Praça Centro Cívico, 100, Centro Cívico","87.200-000","Marco Antonio Franzato"]
["Cidade Gaúcha",0.73711954282373482,"10%","Cianorte","75.377.200/0001-67",122346,"R. Juscelino Kubitschek de Oliveira, 2394, Centro","87.820-000","Henrique Domingues"]
["Clevelândia",0.63832581423038037,"5%","Pato Branco","76.161.199/0001-00",119839,"Praça Getúlio Vargas, 71, Centro","85.530-000","Rafaela Martins Losi"]
["Colombo",0.68909414517249157,"5%","Curitiba","76.105.634/0001-70",133441,"R. Xv de Novembro, 105, Centro","83.414-000","Helder Luiz Lazarotto"]
["Colorado",0.7407429086729671,"10%","Maringá","76.970.326/0001-03",122347,"Av. Brasil, 1250, Centro","86.690-000","Marcos José Consalter de Mello"]
["Congonhinhas",0.68896932525105792,"5%","Cornélio Procópio","75.825.828/0001-88",147436,"Av. Doutor David Xavier da Silva, 266, Centro","86.320-000","José Olegário Ribeiro Lopes"]
["Conselheiro Mairinck",0.68062409612151675,"5%","Jacarezinho","75.968.412/0001-19",122412,"Praça Otacílio Ferreira, 82, Centro","86.480-000","Alex Sandro Pereira Costa Domingues"]
["Contenda",0.67307031587031174,"5%","Curitiba","76.105.519/0001-04",147484,"Av. João Franco, 400, Centro","83.730-000","Antonio Adamir Digner"]
["Corbélia",0.74944183136405895,"10%","Cascavel","76.208.826/0001-02",133427,"R. Amor Perfeito, 1616, Centro","85.420-000","Giovani Miguel Wolf Hnatuw"]
["Cornélio Procópio",0.76736787555954977,"10%","Cornélio Procópio","76.331.941/0001-70",119840,"Av. Minas Gerais, 301, Centro","86.300-000","Amin José Hannouche"]
["Coronel Domingos Soares",0.69496004283810475,"5%","Pato Branco","01.614.415/0001-18",119841,"Av. Araucária, 3120, Centro","85.557-000","Jandir Bandiera"]
["Coronel Vivida",0.75306354208356285,"10%","Pato Branco","76.995.455/0001-56",119842,"Praça Angelo Mezzomo, S/N, Centro","85.550-000","Anderson Manique Barreto"]
["Corumbataí do Sul",0.70961164869697357,"10%","Campo Mourão","80.888.662/0001-89",119843,"R. Tocantins, 153, Centro","86.970-000","Alexandre Donato"]
["Cruzeiro do Iguaçu",0.72550192246226841,"10%","Dois Vizinhos","95.589.230/0001-44",119844,"Av. 13 de Maio, 906, Centro","85.598-000","Leonir Antônio Gelhen"]
["Cruzeiro do Oeste",0.72413051506328419,"10%","Umuarama","76.381.854/0001-27",119845,"R. João Ormindo de Resende, 686, Centro","87.400-000","Maria Helena Bertoco Rodrigues"]
["Cruzeiro do Sul",0.7067748721909618,"10%","Paranavaí","75.731.034/0001-55",122348,"Av. Gastão Vidigal, 600, Centro","87.650-000","Marcos César Sugigan"]
["Cruz Machado",0.68096672266912661,"5%","União da Vitória","76.339.688/0001-09",119846,"Av. Vitória, 251, Centro","84.620-000","Antonio Luis Szaykowski"]
["Cruzmaltina",0.76086840373969211,"10%","Ivaiporã","01.615.393/0001-00",119847,"Av. Padre Gualter Farias Negrão, 40, Centro","86.855-000","Natal Casavechia"]
["Curitiba",0.87296310954403189,"10%","Curitiba","76.417.005/0001-86",14,"Palácio 29 de Março - Av. Cândido de Abreu, 81","80.530-908","Rafael Valdomiro Greca de Macedo"]
["Curiúva",0.63710204537141313,"5%","Jacarezinho","76.167.725/0001-30",119849,"Av. Antônio Cunha, 81, Centro","84.280-000","Natanael Moura dos Santos"]
["Diamante D'Oeste",0.67256090427249404,"5%","Cascavel","77.817.476/0001-44",119850,"R. Marechal Castelo Branco, 597, Centro","85.896-000","Guilherme Pivatto Junior"]
["Diamante do Norte",0.78375668159730927,"10%","Paranavaí","76.972.082/0001-06",119851,"R. José Vicente, 257, Centro","87.990-000","Eliel dos Santos Correa"]
["Diamante do Sul",0.70776080251180851,"10%","Laranjeiras Do Sul","95.595.120/0001-95",122349,"Av. Getúlio Vargas, S/N, Centro","85.408-000","Darci Tirelli"]
["Dois Vizinhos",0.81767504864212048,"10%","Dois Vizinhos","76.205.640/0001-08",119852,"Av. Rio Grande do Sul, 130, Centro","85.660-000","Luis Carlos Turatto"]
["Douradina",0.8626504243965849,"10%","Umuarama","78.200.110/0001-94",119853,"Av. Barão do Rio Branco, 767, Centro","87.485-000","Oberdam José de Oliveira"]
["Doutor Camargo",0.73936860120962544,"10%","Maringá","76.282.714/0001-00",120028,"R. Xavier da Silva, 1000, Centro","87.155-000","Édilen Henrique Xavier"]
["Doutor Ulysses",0.5481645679990832,"5%","Curitiba","95.422.911/0001-13",122350,"R. Olívio Gabriel de Oliveira, 10, Centro","83.590-000","Moiseis Branco da Silva"]
["Enéas Marques",0.72877181977393146,"10%","Francisco Beltrão","76.205.657/0001-57",119854,"Av. Joaquim Bonetti, 579, Centro","85.630-000","Edson Lupatini"]
["Engenheiro Beltrão",0.75194019945573576,"10%","Campo Mourão","76.950.039/0001-31",119855,"R. Manoel Ribas, 160, Centro","87.270-000","Adalmir José Garbim Junior"]
["Entre Rios do Oeste",0.75986000975547807,"10%","Toledo","95.719.449/0001-10",119856,"R. Tocantins, 600, Centro","85.988-000","Ari Aloisio Maldaner"]
["Esperança Nova",0.75687532508370436,"10%","Umuarama","01.612.269/0001-91",119857,"Av. Juvenal Silva Braga, 400, Centro","87.545-000","Everton Barbieri"]
["Espigão Alto do Iguaçu",0.69740759195168012,"5%","Laranjeiras Do Sul","01.612.634/0001-68",119858,"Av. Brasília, 551, Centro","85.465-000","Agenor Bertoncelo"]
["Farol",0.65064522122955193,"5%","Campo Mourão","95.640.124/0001-48",122351,"R. Bahia, 880, Centro","87.325-000","Oclecio de Freitas Meneses"]
["Faxinal",0.71600667294557507,"10%","Ivaiporã","75.771.295/0001-07",119859,"Av. Brasil, 694, Centro","86.840-000","Ylson Alvaro Cantagallo"]
["Fazenda Rio Grande",0.72763157606325723,"10%","Curitiba","95.422.986/0001-02",122352,"R. Jacarandá, 300, Nações","83.820-000","Nassib Kassem Hammad"]
["Fênix",0.71426924280658299,"10%","Campo Mourão","76.950.021/0001-30",119860,"R. Jangada, 25, Centro","86.950-000","Altair Molina Serrano"]
["Fernandes Pinheiro",0.70764565104292654,"10%","Irati","01.619.323/0001-20",119861,"Av. Remis João Loss, 600, Centro","84.535-000","Cleonice Aparecida Kufener Schuck"]
["Figueira",0.68589811305908588,"5%","Jacarezinho","78.063.732/0001-18",119862,"R. Doutor Zoilo Meira Simões, 410, Centro","84.285-000","José Carlos Contiero"]
["Floraí",0.77960311559952145,"10%","Maringá","75.731.000/0001-60",122353,"R. Presidente Getúlio Vargas, 177","87.185-000","Edna de Lourdes Carpine Contin"]
["Flor da Serra do Sul",0.72577504510059299,"10%","Francisco Beltrão","95.589.271/0001-30",119863,"R. João Arisi, 115, Centro","85.618-000","Valmor Felipe Junior"]
["Floresta",0.7384642277224609,"10%","Maringá","76.282.706/0001-55",119864,"Av. Getúlio Vargas, 2420, Centro","87.120-000","Ademir Luiz Maciel"]
["Florestópolis",0.68298272128343929,"5%","Londrina","75.845.495/0001-59",122354,"R. Santo Inácio, 161, Centro","86.165-000","Onicio de Souza"]
["Flórida",0.76715756666190904,"10%","Maringá","75.772.400/0001-14",122355,"R. São Pedro, 443, Centro","86.780-000","Antonio Emerson Sette"]
["Formosa do Oeste",0.74181069319335868,"10%","Toledo","76.208.495/0001-00",147689,"Av. Severiano Bonfim dos Santos, 111, Centro","85.830-000","Luiz Antonio Domingos de Aguiar"]
["Foz do Iguaçu",0.73768050636372784,"10%","Cascavel","76.206.606/0001-40",147495,"Praça Getúlio Vargas, 280, Centro","85.851-340","Francisco Lacerda Brasileiro"]
["Foz do Jordão",0.64964853114596022,"5%","Guarapuava","01.603.719/0001-80",122356,"R. Padre Emílio Barbiéri, 339, Centro","85.145-000","Francisco Clei da Silva"]
["Francisco Alves",0.66340617630259102,"5%","Umuarama","77.356.665/0001-67",119865,"R. Jorge Fereira, 627, Centro","87.570-000","Valter Cesar Rosa"]
["Francisco Beltrão",0.76279828877569533,"10%","Francisco Beltrão","77.816.510/0001-66",119866,"R. Octaviano Teixeira dos Santos, 1000, Centro","85.600-000","Cleber Fontana"]
["General Carneiro",0.64043765656038831,"5%","União da Vitória","75.687.681/0001-07",122357,"Av. Presidente Getúlio Vargas, 601, Centro","84.660-000","Joel Ricardo Martins Ferreira"]
["Godoy Moreira",0.72613879472886289,"10%","Ivaiporã","81.392.656/0001-07",119867,"R. Sebastião Máximo, 184, Centro","86.938-000","Primis de Oliveira"]
["Goioerê",0.74985384374692876,"10%","Campo Mourão","78.198.975/0001-63",119868,"Av. Amazonas, 280, Jardim Lindóia","87.360-000","Roberto dos Reis de Lima"]
["Goioxim",0.7051594824709847,"10%","Guarapuava","01.607.627/0001-78",131884,"R. Laurindo Cordeiro de Souza, 184, Centro","85.162-000","Mari Terezinha da Silva"]
["Grandes Rios",0.71283305216165715,"10%","Ivaiporã","75.741.348/0001-39",119869,"Av. Brasil, 967, Centro","86.845-000","Antonio Ribeiro da Silva"]
["Guaíra",0.70339267630037572,"10%","Toledo","77.857.183/0001-90",119870,"Av. Coronel Otávio Tosta, 126","85.980-000","Heraldo Trento"]
["Guairaçá",0.6725312715648043,"5%","Paranavaí","76.238.443/0001-87",122358,"R. Francisco Vieira, 1181","87.880-000","Marcelo Alves de Oliveira"]
["Guamiranga",0.67912330558574752,"5%","Irati","01.616.255/0001-46",119871,"R. Diogo Emanuel de Almeida, 234, Centro","84.435-000","Marcelo Leite"]
["Guapirama",0.74738231274258549,"10%","Jacarezinho","75.443.812/0001-00",119872,"R. Dois de Março, 460","86.465-000","Eduí Gonçalves"]
["Guaporema",0.74020764412305251,"10%","Cianorte","75.378.844/0001-70",119873,"R. Pará, 86","87.810-000","Gilberto Castiglioni"]
["Guaraci",0.68190475870133993,"5%","Londrina","75.845.537/0001-51",122359,"R. Prefeito João de Giuli, 180","86.620-000","Sidnei Dezoti"]
["Guaraniaçu",0.70635843040239354,"10%","Laranjeiras Do Sul","76.208.818/0001-66",119874,"Av. Abilon de Souza Neves, 394","85.400-000","Osmario de Lima Portela"]
["Guarapuava",0.77107571536070507,"10%","Guarapuava","76.178.037/0001-76",122327,"R. Brigadeiro Rocha, 2777","85.010-210","Celso Fernando Góes"]
["Guaraqueçaba",0.54941534906708034,"5%","Paranaguá","76.022.508/0001-52",122360,"R. Major Domingos do Nascimento, 46","83.390-000","Lilian Ramos Narloch"]
["Guaratuba",0.64363609873820293,"5%","Paranaguá","76.017.474/0001-08",120032,"R. Doutor João Cândido, 380, Centro","83.280-000","Roberto Cordeiro Justus"]
["Honório Serpa",0.7360543146723163,"10%","Pato Branco","95.585.444/0001-42",122361,"R. Elpídio dos Santos, 541","85.548-000","Luciano Dias"]
["Ibaiti",0.7265415844011871,"10%","Jacarezinho","77.008.068/0001-41",122362,"R. Vereador José de Moura Bueno, 23 - Praça dos T","84.900-000","Antonely de Cássio Alves de Carvalho"]
["Ibema",0.71538509095408165,"10%","Cascavel","80.881.931/0001-85",119875,"Av. Ney Euirson Napoli, 1426, Centro","85.478-000","Viviane Comiran"]
["Ibiporã",0.75035824663869954,"10%","Londrina","76.244.961/0001-03",119876,"R. Padre Vitoriano Valente, 540, Centro","86.200-000","José Maria Ferreira"]
["Icaraíma",0.6998848155735703,"5%","Umuarama","76.247.337/0001-60",119877,"Av. Hermes Vissoto, 810","87.530-000","Marcos Alex de Oliveira"]
["Iguaraçu",0.79963968205181024,"10%","Maringá","75.772.525/0001-44",147713,"R. Otávio Pedro da Silva, 294","86.750-000","Eliseu Silva da Costa"]
["Iguatu",0.76062447649270715,"10%","Cascavel","95.595.013/0001-67",119878,"Av. Centenário, 500, Centro","85.423-000","Vlademir Antonio Barella"]
["Imbaú",0.62329992745052365,"5%","Ponta Grossa","01.613.770/0001-72",122363,"Av. Francisco Siqueira Kortz, 471, São Cristóv","84.250-000","Dayane Sovinski Rodrigues"]
["Imbituva",0.72107829289780379,"10%","Irati","76.175.892/0001-23",119879,"R. José Buhrer Júnior, 462","84.430-000","Celso Kubaski"]
["Inácio Martins",0.64431082593708922,"5%","Irati","76.178.029/0001-20",119880,"R. Sete de Setembro, 332","85.155-000","Edemetrio Benato Junior"]
["Inajá",0.74286747731203528,"10%","Paranavaí","76.970.318/0001-67",122364,"Av. Antonio Vieira Martins, 80","87.670-000","Cléber Geraldo da Silva"]
["Indianópolis",0.73151917348972828,"10%","Cianorte","75.798.355/0001-77",119881,"Praça Caramurú, 150","87.210-000","Juliano Trevisan Cordeiro"]
["Ipiranga",0.63305185787554308,"5%","Ponta Grossa","76.175.934/0001-26",119882,"R. Xv de Novembro, 545, Centro","84.450-000","Douglas Davi Cruz"]
["Iporã",0.6959564192746942,"5%","Umuarama","75.738.484/0001-70",119883,"R. Pedro Alvares Cabral, 2677","87.560-000","Sergio Luiz Borges"]
["Iracema do Oeste",0.68712333539042703,"5%","Toledo","95.583.555/0001-10",119884,"R. Professor Vieira de Alencar, 441","85.833-000","Elza Haase Rodrigues"]
["Irati",0.7520163807562148,"10%","Irati","75.654.574/0001-82",119885,"R. Coronel Emílio Gomes, 22","84.500-000","Jorge David Derbli Pinto"]
["Iretama",0.71463738204048488,"10%","Campo Mourão","76.950.088/0001-74",122365,"R. Oscar Gauer Khunn, 174","87.280-000","Same Saab"]
["Itaguajé",0.71914313606956748,"10%","Maringá","76.970.359/0001-53",147724,"Av. Governador Moisés Lupion, 605","86.670-000","Crisogono Noleto E Silva Junior"]
["Itaipulândia",0.77738928125330986,"10%","Cascavel","95.725.057/0001-64",147725,"R. São Miguel do Iguaçu, 1891","80.588-000","Cleide Ines Griebeler Prates"]
["Itambaracá",0.65960753903910152,"5%","Cornélio Procópio","76.235.738/0001-08",119886,"Av. Interventor Manoel Ribas, 6, Centro","86.375-000","Mônica Cristina Zambon Holzmann"]
["Itambé",0.72725692224021643,"10%","Maringá","76.282.698/0001-47",133431,"Praça Rui Barbosa, 34","87.175-000","Vitor Aparecido Fedrigo"]
["Itapejara D'Oeste",0.773280471864775,"10%","Pato Branco","76.995.430/0001-52",119887,"Av. Manoel Ribas, 620, Centro","85.580-000","Vilmar Schmoller"]
["Itaperuçu",0.59325923036025907,"5%","Curitiba","95.422.846/0001-26",147510,"Av. Crispim Furquim da Siqueira, 1800","83.560-000","Neneu Jose Artigas"]
["Itaúna do Sul",0.66312967720114679,"5%","Paranavaí","75.458.836/0001-33",119888,"Av. Brasil, 883, Centro","87.980-000","Gilson José de Gois"]
["Ivaí",0.6832086421389828,"5%","Ponta Grossa","76.175.918/0001-33",119889,"R. Rui Barbosa, 632","84.460-000","Idir Treviso"]
["Ivaiporã",0.73632415769580728,"10%","Ivaiporã","75.741.330/0001-37",119890,"R. Rio Grande do Norte, 1000","86.870-000","Luiz Carlos Gil"]
["Ivaté",0.76214818185828903,"10%","Umuarama","95.640.553/0001-15",122366,"Av. Rio de Janeiro, 2758","87.525-000","Denilson Vaglieri Prevital"]
["Ivatuba",0.73484922626758564,"10%","Maringá","76.285.337/0001-54",122367,"R. Marechal Floriano, 797","87.130-000","Sergio José Santi"]
["Jaboti",0.71013027097669668,"10%","Jacarezinho","75.969.667/0001-04",119891,"Praça Minas Gerais, 175","84.930-000","Regis William Siqueira Rodrigues"]
["Jacarezinho",0.74813426762744861,"10%","Jacarezinho","76.966.860/0001-46",119892,"R. Coronel Baptista, 335","86.400-000","Marcelo José Bernardeli Palhares"]
["Jaguapitã",0.78655331534237416,"10%","Londrina","75.457.341/0001-90",122368,"Av. Minas Gerais, 220","86.610-000","Gerson Luiz Marcato"]
["Jaguariaíva",0.73489520644093886,"10%","Ponta Grossa","76.910.900/0001-38",119893,"Praça Isabel Branco, 142, Cidade Alta","84.200-000","Alcione Lemos"]
["Jandaia do Sul",0.7756168239554343,"10%","Apucarana","75.771.204/0001-25",119894,"Praça do Café, 22","86.900-000","Lauro de Souza Silva Junior"]
["Janiópolis",0.74465348479284332,"10%","Campo Mourão","76.402.882/0001-83",120033,"R. Rui Barbosa, 286, Centro","87.380-000","Ismael Jose Dezanoski"]
["Japira",0.64876970069767292,"5%","Jacarezinho","75.969.881/0001-52",119895,"Av. Alexandre Leite dos Santos, 481, Centro","84.920-000","Angelo Marcos Vigilato"]
["Japurá",0.78186585061512137,"10%","Cianorte","75.788.349/0001-39",119896,"Av. Bolivar, 363, Centro","87.225-000","Adriana Cristina Polizer"]
["Jardim Alegre",0.72032206101728369,"10%","Ivaiporã","75.741.363/0001-87",122369,"Praça Mariana Leite Felix, 800","86.860-000","José Roberto Furlan"]
["Jardim Olinda",0.73756500072834996,"10%","Paranavaí","76.970.383/0001-92",122370,"Av. Siqueira Campos, 83, Centro","87.690-000","Lucimar de Souza Morais"]
["Jataizinho",0.64021576287726445,"5%","Cornélio Procópio","76.245.042/0001-54",147744,"Av. Presidente Getúlio Vargas, 494","86.210-000","Wilson Fernandes"]
["Jesuítas",0.74650258875145614,"10%","Toledo","77.398.154/0001-08",119897,"R. Padre Leonel França, 369","85.835-000","Aparecido Jose Weiller Junior"]
["Joaquim Távora",0.78846969012664847,"10%","Jacarezinho","76.966.845/0001-06",122371,"R. Miguel Dias, 226, Centro","86.455-000","Reginaldo Vilela"]
["Jundiaí do Sul",0.69208861566106983,"5%","Jacarezinho","76.408.061/0001-54",175629,"Praça Pio X, 260, Centro","86.470-000","Eclair Rauen"]
["Juranda",0.73889290252869844,"10%","Campo Mourão","78.196.755/0001-09",119898,"Praça Henrique Szafermann, 139, Centro","87.355-000","Leila Miotto Amadei"]
["Jussara",0.80111886083783757,"10%","Cianorte","75.789.552/0001-20",119899,"Av. Princesa Izabel, 320, Centro","87.230-000","Robison Pedroso da Silva"]
["Kaloré",0.74235064342486146,"10%","Apucarana","75.771.238/0001-10",122372,"Praça Francisco Lemes Gonçalves, 267, Centro","86.920-000","Edmilson Luis Stencel"]
["Lapa",0.69263907893552001,"5%","Curitiba","76.020.452/0001-05",119788,"Alameda David Carneiro, 243, Centro","83.750-000","Diego Timbirussu Ribas"]
["Laranjal",0.61579816112486407,"5%","Pitanga","95.684.536/0001-80",119900,"R. Pernambuco, 501, Centro","85.275-000","João Elinton Dutra"]
["Laranjeiras do Sul",0.72642148408109619,"10%","Laranjeiras Do Sul","76.205.970/0001-95",119901,"R. Expedicionário João Maria, 1020, Centro","85.301-410","Jonatas Felisberto da Silva"]
["Leópolis",0.6641509269703626,"5%","Cornélio Procópio","75.388.850/0001-08",119902,"R. Pedro Domingues de Souza, 374, Centro","86.330-000","Alessandro Ribeiro"]
["Lidianópolis",0.69220230809702876,"5%","Ivaiporã","95.680.831/0001-68",119903,"R. Juscelino Kubitschek, 327, Centro","86.865-000","Adauto Aparecido Mandu"]
["Lindoeste",0.71254519849084763,"10%","Cascavel","80.881.915/0001-92",147756,"Av. Marechal Cândido Rondon, S/N, Centro","85.826-000","Silvio de Souza"]
["Loanda",0.69248198317590737,"5%","Paranavaí","76.972.074/0001-51",119904,"R. Mato Grosso, 354, Alto da Glória","87.900-000","José Maria Pereira Fernandes"]
["Lobato",0.74397896463498381,"10%","Maringá","76.970.367/0001-08",119905,"R. Antonio Coleto, 1260, Centro","86.790-000","Fabio Chicaroli"]
["Londrina",0.80508711045378745,"10%","Londrina","75.771.477/0001-70",140982,"Av. Duque de Caxias, 635, Jardim Mazei Ii","86.015-901","Marcelo Belinati Martins"]
["Luiziana",0.73803059331378729,"10%","Campo Mourão","80.888.688/0001-27",122373,"R. Doutor Miguel Vieira Ferreira, 22, Centro","87.290-000","Wilson Antônio Tureck"]
["Lunardelli",0.73939238893056147,"10%","Ivaiporã","78.600.491/0001-07",122374,"Av. Dom Pedro Ii, 195, Centro","86.935-000","Reinaldo Grola"]
["Lupionópolis",0.62947144705742408,"5%","Londrina","75.845.511/0001-03",119906,"Praça Padre Antonio Pozzato, 880, Centro","86.635-000","Antonio Peloso Filho"]
["Mallet",0.78523985872340452,"10%","Irati","75.654.566/0001-36",119907,"R. Xv de Novembro, 28, Centro","84.570-000","Moacir Alfredo Szinvelski"]
["Mamborê",0.7603679329080365,"10%","Campo Mourão","75.368.928/0001-22",122375,"R. Guadalajara, 645, Centro","87.340-000","Ricardo Radomski"]
["Mandaguaçu",0.75730118483848707,"10%","Maringá","76.285.329/0001-08",119908,"R. Bernardino Bogo, 175, Centro","87.160-000","Maurício Aparecido da Silva"]
["Mandaguari",0.79725772094746494,"10%","Maringá","76.285.345/0001-09",119909,"Av. Amazonas, 500, Centro","86.975-000","Ivoneia de Andrade Aparecido Furtado"]
["Mandirituba",0.64196142440035875,"5%","Curitiba","76.105.550/0001-37",147769,"Praça Bom Jesus, 44, Centro","83.800-000","Luis Antonio Biscaia"]
["Manfrinópolis",0.57885893119072762,"5%","Francisco Beltrão","01.614.343/0001-09",119910,"R. Encantilado, 11, Centro","85.628-000","Ilena de Fatima Pegoraro Oliveira"]
["Mangueirinha",0.7216630739991724,"10%","Pato Branco","77.774.867/0001-29",119911,"Praça Francisco de Assis Reis, 1064, Centro","85.540-000","Elidio Zimerman de Moraes"]
["Manoel Ribas",0.66900758158748774,"5%","Pitanga","75.740.811/0001-28",119912,"Av. Sete de Setembro, 366, Centro","85.260-000","José Carlos da Silva Corona"]
["Marechal Cândido Rondon",0.79525337952209763,"10%","Toledo","76.205.814/0001-24",119913,"R. Espirito Santo, 777, Centro","85.960-000","Marcio Andrei Rauber"]
["Maria Helena",0.72462164294523568,"10%","Umuarama","76.247.386/0001-00",119914,"Praça Brasil, 2001, Centro","87.480-000","Marlon Rancer Marques"]
["Marialva",0.77402804335860564,"10%","Maringá","76.282.680/0001-45",119915,"R. Santa Efigênia, 680, Centro","86.990-000","Victor Celso Martini"]
["Marilândia do Sul",0.70820523015981751,"10%","Apucarana","75.771.303/0001-07",122376,"R. Silvio Beligni, 200, Centro","86.825-000","Aquiles Takeda Filho"]
["Marilena",0.72599901071179629,"10%","Paranavaí","75.971.010/0001-73",119916,"R. Dante Pasqualetto, 855, Centro","87.960-000","José Aparecido da Silva"]
["Mariluz",0.65579498327713281,"5%","Umuarama","76.404.136/0001-29",122326,"Av. Marilia, 1920, Centro","87.470-000","Paulo Armando da Silva Alves"]
["Maringá",0.81058502795872045,"10%","Maringá","76.282.656/0001-06",147520,"Av. Xv de Novembro, 701, Centro","87.013-230","Ulisses de Jesus Maia Kotsifas"]
["Mariópolis",0.72928977956299745,"10%","Pato Branco","76.995.323/0001-24",122377,"R. Seis, 1030","85.525-000","Mário Eduardo Lopes Paulek"]
["Maripá",0.80350289057802549,"10%","Toledo","95.583.571/0001-02",119917,"R. Luiz de Camões, 437","85.955-000","Rodrigo André Schanoski"]
["Marmeleiro",0.75361043652659154,"10%","Francisco Beltrão","76.205.665/0001-01",119918,"Av. Macali, 255, Centro","85.615-000","Paulo Jair Pilati"]
["Marquinho",0.69772806881867899,"5%","Laranjeiras Do Sul","01.612.552/0001-13",122378,"R. Sete de Setembro, S/N, Centro","85.168-000","Elio Bolzon Junior"]
["Marumbi",0.76756723475151389,"10%","Apucarana","75.771.246/0001-66",122328,"R. Vereador João Fuzetti, 800","86.910-000","Adhemar Francisco Rejani"]
["Matelândia",0.79150982462287434,"10%","Cascavel","76.206.465/0001-65",119919,"Av. Duque de Caxias, 800","85.887-000","Maximino Pietrobon"]
["Matinhos",0.58173702551338857,"5%","Paranaguá","76.017.466/0001-61",122379,"R. Pastor Elias Abrahão, 22, Centro","83.260-000","José Carlos do Espirito Santo"]
["Mato Rico",0.73281496549560821,"10%","Pitanga","95.684.510/0001-31",122380,"Av. Das Araucárias, 01, Centro","85.240-000","Edelir de Jesus Ribeiro da Silva"]
["Mauá da Serra",0.71644117901923632,"10%","Apucarana","95.548.400/0001-42",119920,"Av. Ponta Grossa, 480","86.828-000","Hermes Wicthoff"]
["Medianeira",0.78825332748766186,"10%","Cascavel","76.206.481/0001-58",119921,"Av. José Ccallegari, 647, Ipê","85.884-000","Antonio França Benjamim"]
["Mercedes",0.76954117165426705,"10%","Toledo","95.719.373/0001-23",122330,"R. Doutor Osvaldo Cruz, 555, Centro","85.998-000","Laerton Weber"]
["Mirador",0.75136493995476739,"10%","Paranavaí","75.475.442/0001-93",119922,"Av. Guaíra, 153, Centro","87.840-000","Fabiano Marcos da Silva Travain"]
["Miraselva",0.7590093476671812,"10%","Londrina","75.845.529/0001-05",122381,"R. São Paulo, 10","86.615-000","Rogerio Aparecido da Silva"]
["Missal",0.71224001312828589,"10%","Cascavel","78.101.847/0001-50",147523,"R. Nossa Senhora da Conceição, 555","85.890-000","Adilto Luis Ferrari"]
["Moreira Sales",0.70018402617359132,"10%","Campo Mourão","76.217.025/0001-03",122382,"R. Otto de Macedo, 629, Centro","87.370-000","Rafael Brito do Prado"]
["Morretes",0.59451040447057035,"5%","Paranaguá","76.022.490/0001-99",119923,"Praça Rocha Pombo, 10, Centro","83.350-000","Sebastião Brindarolli Junior"]
["Munhoz de Mello",0.71482849076625843,"10%","Maringá","75.352.062/0001-61",147796,"R. Domingos Ricardo de Lima, 174","86.760-000","Marcondes Araújo da Costa"]
["Nossa Senhora Das Graças",0.71284494367211426,"10%","Maringá","76.970.300/0001-65",147797,"Praça Deputado Nilson Batista Ribas, 131, Centro","86.680-000","Clodoaldo Aparecido Rigieri"]
["Nova Aliança do Ivaí",0.79950413500983197,"10%","Paranavaí","76.413.061/0001-42",214812,"Av. Francisco Pires de Lemos, 410, Centro","87.790-000","Ulisses de Souza"]
["Nova América da Colina",0.72764277747600647,"10%","Cornélio Procópio","75.827.204/0001-08",119924,"Av. Paraná, 42","86.230-000","Sebastião Rogatti"]
["Nova Aurora",0.7822834575935147,"10%","Cascavel","76.208.859/0001-52",119925,"R. São João, 354","85.410-000","José Aparecido de Paula E Souza"]
["Nova Cantú",0.73777097180179119,"10%","Campo Mourão","77.845.394/0001-03",119926,"R. Bahia, 660","87.330-000","Airton Antonio Agnolin"]
["Nova Esperança",0.76185137778886836,"10%","Maringá","75.730.994/0001-09",119927,"Av. Rocha Pombo, 1453, Centro","87.600-000","Moacir Olivatti"]
["Nova Esperança do Sudoeste",0.67649340044584916,"5%","Dois Vizinhos","95.589.289/0001-32",119928,"Av. Iguaçu, 750, Centro","85.635-000","Jaime da Silva Stang"]
["Nova Fátima",0.75029474339458957,"10%","Cornélio Procópio","75.828.418/0001-90",147804,"R. Doutor Aloysio de Barros Tostes, 420, Centro","86.310-000","Roberto Carlos Messias"]
["Nova Laranjeiras",0.58956155339698246,"5%","Laranjeiras Do Sul","95.587.648/0001-12",122383,"R. Rio Grande do Sul, 2122","85.350-000","Fabio Roberto dos Santos"]
["Nova Londrina",0.77866006568172408,"10%","Paranavaí","81.044.984/0001-04",119929,"Praça da Matriz, 261, Centro","87.970-000","Otavio Henrique Grendene Bono"]
["Nova Olímpia",0.71902914689911002,"10%","Umuarama","75.799.577/0001-04",122384,"Av. Higienópolis, 821, Centro","87.490-000","Luiz Lazaro Sorvos"]
["Nova Prata do Iguaçu",0.71808863465151551,"10%","Dois Vizinhos","78.103.884/0001-05",119930,"R. Vereador Valmor Gomes, 1159, Centro","85.685-000","Sergio Faust"]
["Nova Santa Bárbara",0.65813378503796527,"5%","Cornélio Procópio","95.561.080/0001-60",147809,"R. Walfredo Bittencourt de Moraes, 222","86.250-000","Claudemir Valério"]
["Nova Santa Rosa",0.74316594625527965,"10%","Toledo","77.116.663/0001-09",120029,"R. Tucunduva, 833","85.930-000","Norberto Pinz"]
["Nova Tebas",0.66944626032185139,"5%","Pitanga","80.620.172/0001-05",119931,"R. Belo Horizonte, 695","85.250-000","Clodoaldo Fernandes dos Santos"]
["Novo Itacolomi",0.73828290374387695,"10%","Apucarana","95.639.472/0001-03",119932,"Av. 28 de Setembro, 711","86.895-000","Moacir Andreolla"]
["Ortigueira",0.79259841015424259,"10%","Ponta Grossa","77.721.363/0001-40",119933,"R. São Paulo, 80","84.350-000","Ary de Oliveira Mattos"]
["Ourizona",0.74024215812601513,"10%","Maringá","76.282.672/0001-07",122385,"R. Bela Vista, 1014, Centro","87.170-000","Manoel Rodrigo Amado"]
["Ouro Verde do Oeste",0.73857572661081816,"10%","Toledo","80.880.107/0001-00",122331,"R. Curitiba, 657","85.933-000","Lucian Aluisio Dierings"]
["Paiçandu",0.70849921187957365,"10%","Maringá","76.282.664/0001-52",147529,"R. Sete de Setembro, 499","87.140-000","Ismael Batista"]
["Palmas",0.65828996833179654,"5%","Pato Branco","76.161.181/0001-08",122386,"Av. Clevelândia, 521, Centro","85.555-000","Kosmos Panayotis Nicolaou"]
["Palmeira",0.73946644331583455,"10%","Ponta Grossa","76.179.829/0001-65",119934,"Praça Marechal Floriano Peixoto, 11 - Centro","84.130-000","Sérgio Luís Belich"]
["Palmital",0.68756754109673313,"5%","Pitanga","75.680.025/0001-82",119935,"R. Moisés Lupion, 1001","85.270-000","Valdenei de Souza"]
["Palotina",0.85211193553644005,"10%","Toledo","76.208.487/0001-64",119936,"R. Aldir Pedron, 898","85.950-000","Luiz Ernesto de Giacometti"]
["Paraíso do Norte",0.75093307483939542,"10%","Paranavaí","75.476.556/0001-58",121327,"Av. Tapejara, 88, Centro","87.780-000","Carlos Alberto Vizzotto"]
["Paranacity",0.6874259173650562,"5%","Paranavaí","76.970.334/0001-50",119937,"R. Pedro Paulo Venério, 1022","87.660-000","Waldemar Naves Cocco Junior"]
["Paranaguá",0.70629454441827788,"10%","Paranaguá","76.017.458/0001-15",119938,"R. Júlia da Costa, 322 - Palácio São José","83.203-060","Marcelo Elias Roque"]
["Paranapoema",0.76801529955607706,"10%","Paranavaí","76.970.391/0001-39",147824,"R. Doutor José Cândido Muricy, 216, Centro","87.680-000","Sidnei Frazatto"]
["Paranavaí",0.77601169468395159,"10%","Paranavaí","76.977.768/0001-81",119939,"R. Getúlio Vargas, 900, Centro","87.702-000","Carlos Henrique Rossato Gomes"]
["Pato Bragado",0.79756382343047483,"10%","Toledo","95.719.472/0001-05",119940,"R. Willy Barth, 2885","85.948-000","Leomar Rohden"]
["Pato Branco",0.81877699522300562,"10%","Pato Branco","76.995.448/0001-54",119941,"R. Caramurú, 271, Centro","85.501-060","Robson Cantu"]
["Paula Freitas",0.73840358654373262,"10%","União da Vitória","75.687.954/0001-13",119942,"Av. Agostinho de Souza, 646, Centro","84.630-000","Sebastião Algacir Dalpra"]
["Paulo Frontin",0.71135670111510452,"10%","União da Vitória","77.007.474/0001-90",122387,"R. Rui Barbosa, 204","84.635-000","Jamil Pech"]
["Peabiru",0.74491133471464011,"10%","Campo Mourão","75.370.148/0001-17",122388,"Praça Eleutério Galdino de Andrade, 21, Centro","87.250-000","Julio Cezar Frare"]
["Perobal",0.71498711813845139,"10%","Umuarama","01.612.444/0001-40",119943,"Av. Paraná, 609, Centro","87.538-000","Almir de Almeida"]
["Pérola",0.69143782838236501,"5%","Umuarama","81.478.133/0001-70",119944,"Av. Dona Pérola Byington, 1800, Centro","87.540-000","Valdete Carlos Oliveira Gonçalves da Cunha"]
["Pérola D'Oeste",0.71477489134052841,"10%","Francisco Beltrão","75.924.290/0001-69",119945,"R. Presidente Costa E Silva, 290, Centro","85.740-000","Edsom Luiz Bagetti"]
["Piên",0.75256318731015892,"10%","Curitiba","76.002.666/0001-40",119946,"R. Amazonas, 373, Centro","83.860-000","Maicon Grosskopf"]
["Pinhais",0.77584581870497893,"10%","Curitiba","95.423.000/0001-00",119947,"R. Wanda dos Santos Mallmann, 536, Centro","83.323-400","Marly Paulino Fagundes"]
["Pinhalão",0.75782318269031546,"10%","Jacarezinho","76.167.717/0001-94",122409,"R. Domingos Calixto, 483, Centro","84.925-000","Dionisio Arrais de Alencar"]
["Pinhal de São Bento",0.7605572170152598,"10%","Francisco Beltrão","95.590.832/0001-11",119948,"Av. São Roque, 178","85.727-000","Paulo Falcade de Oliveira"]
["Pinhão",0.67744038498213788,"5%","Guarapuava","76.178.011/0001-28",119949,"Av. Trifon Hanysz, 220, Centro","85.170-000","José Vitorino Prestes"]
["Piraí do Sul",0.69341673215415123,"5%","Ponta Grossa","77.001.329/0001-00",214818,"Praça Alípio Domingues, 34, Centro","84.240-000","Henrique de Oliveira Carneiro"]
["Piraquara",0.6227020534134855,"5%","Curitiba","76.105.675/0001-67",122389,"Av. Getúlio Vargas, 1990, Centro","83.301-010","Josimar Aparecido Knupp Froes"]
["Pitanga",0.74848314473037914,"10%","Pitanga","76.172.907/0001-08",119950,"Praça 28 de Janeiro, 171, Centro","85.200-000","Maicol Geison Callegari Rodrigues Barbosa"]
["Pitangueiras",0.75802635422788001,"10%","Londrina","95.543.427/0001-42",122410,"Av. Central, 408, Centro","86.613-000","Samuel Teixeira"]
["Planaltina do Paraná",0.72489678582956485,"10%","Paranavaí","75.461.442/0001-34",122390,"Praça Giácomo Madalozzo, 234, Centro","87.860-000","Celso Maggioni"]
["Planalto",0.71543879233433094,"10%","Francisco Beltrão","76.460.526/0001-16",119951,"Praça São Francisco de Assis, 1583","85.750-000","Luiz Carlos Boni"]
["Ponta Grossa",0.7382368235900717,"10%","Ponta Grossa","76.175.884/0001-87",119952,"Av. Visconde de Taunay, 950, Ronda","84.051-900","Elizabeth Silveira Schmidt"]
["Pontal do Paraná",0.57101309871941652,"5%","Paranaguá","01.609.843/0001-52",119953,"Rodovia - Pr 407 - Km 19, 215, Praia de Leste","83.255-000","Rudisney Gimenes Filho"]
["Porecatu",0.65800919741133679,"5%","Londrina","80.542.764/0001-48",122391,"R. Barão do Rio Branco, 344","86.160-000","Fábio Luiz Andrade"]
["Porto Amazonas",0.68934130628207313,"5%","Ponta Grossa","76.179.837/0001-01",147848,"R. Guilherme Schiffer, 67, Centro","84.140-000","Elias Jocid Gomes da Costa"]
["Porto Barreiro",0.71956342310669152,"10%","Laranjeiras Do Sul","01.591.618/0001-36",119954,"R. Das Carmélias, 900","85.345-000","Emanoel Vanderlei Volff"]
["Porto Rico",0.73414397411374921,"10%","Paranavaí","75.461.970/0001-93",132286,"Av. João Carraro, 557","87.950-000","Álvaro de Freitas Netto"]
["Porto Vitória",0.73496111172031175,"10%","União da Vitória","75.688.366/0001-02",119955,"R. Osvaldo Gomes da Silva, 717, Centro","84.615-000","Marisa de Fatima Ilkiu de Souza"]
["Prado Ferreira",0.71872072471275927,"10%","Londrina","01.613.136/0001-30",119956,"R. São Paulo, 191, Centro","86.618-000","Maria Edna de Andrade"]
["Pranchita",0.68150191427699414,"5%","Francisco Beltrão","78.113.834/0001-09",119957,"Av. Simão Faquinello, 364","85.730-000","Eloir Nelson Lange"]
["Presidente Castelo Branco",0.69483163286217053,"5%","Maringá","76.279.959/0001-70",147855,"R. José Peres Gonçalves, 53","87.180-000","Joao Pericles Martinati"]
["Primeiro de Maio",0.70222613609721041,"10%","Londrina","76.245.059/0001-01",122392,"R. Onze, 674","86.140-000","Bruna de Oliveira Casanova"]
["Prudentópolis",0.73272833585780983,"10%","Guarapuava","77.003.424/0001-34",119958,"R. Rui Barbosa, 801, Centro","84.400-000","Osnei Stadler"]
["Quarto Centenário",0.77490699803577423,"10%","Campo Mourão","01.619.104/0001-41",119959,"Av. Raposo Tavares, 594","87.365-000","Wilson Akio Abe"]
["Quatiguá",0.74572855195813503,"10%","Jacarezinho","76.966.852/0001-08",119960,"Av. João Pessoa, 1300","86.450-000","Adelita Parmezan de Moraes"]
["Quatro Barras",0.83263872641059977,"10%","Curitiba","76.105.568/0001-39",147860,"Av. Dom Pedro Ii, 110, Centro","83.420-000","Loreno Bernardo Tolardo"]
["Quatro Pontes",0.76644765763131917,"10%","Toledo","95.719.381/0001-70",119961,"R. Gaspar Martins, 560, Centro","85.940-000","João Inacio Laufer"]
["Quedas do Iguaçu",0.71253842804581924,"10%","Laranjeiras Do Sul","76.205.962/0001-49",119962,"R. Juazeiro, 1065","85.460-000","Elcio Jaime da Luz"]
["Querência do Norte",0.68904972707932599,"5%","Paranavaí","76.973.692/0001-16",119963,"R. Waldemar dos Santos, 1197","87.930-000","Alex Sandro Fernandes"]
["Quinta do Sol",0.72890431231785635,"10%","Campo Mourão","76.950.047/0001-88",119964,"Praça Solange Marques, 259, Centro","87.265-000","Leonardo Lazzaretti Romero"]
["Quitandinha",0.68140264054776722,"5%","Curitiba","76.002.674/0001-97",119965,"R. José de Sá Ribas, 238","83.840-000","Jose Ribeiro de Moura"]
["Ramilândia",0.55244069101857918,"5%","Cascavel","95.725.024/0001-14",122393,"Av. Voluntários da Pátria, 1600","85.888-000","Edson dos Santos"]
["Rancho Alegre",0.68772008137683083,"5%","Cornélio Procópio","75.829.416/0001-16",214819,"Av. Brasil, 256","86.290-000","Fernando Carlos Coimbra"]
["Rancho Alegre D'Oeste",0.77101906561252453,"10%","Campo Mourão","95.640.132/0001-94",119966,"Av. Paraná, 530, Centro","87.395-000","Adão Aristeu Ceniz"]
["Realeza",0.76145251711247008,"10%","Francisco Beltrão","76.205.673/0001-40",119967,"R. Barão do Rio Branco, 3507, Centro Cívico","85.770-000","Paulo Cezar Casaril"]
["Rebouças",0.73481503176804575,"10%","Irati","77.774.859/0001-82",147870,"R. José Afonso Vieira Lopes, 96","84.550-000","Luiz Everaldo Zak"]
["Renascença",0.77343106393293104,"10%","Francisco Beltrão","76.205.681/0001-96",122394,"R. Getúlio Vargas, 901, Centro","85.610-000","Idalir João Zanella"]
["Reserva",0.65156408114584807,"5%","Ponta Grossa","76.169.879/0001-61",119968,"R. Coronel Rogério Borba, 741, Centro","84.320-000","Lucas Machado Ribeiro"]
["Reserva do Iguaçu",0.67761314941234074,"5%","Guarapuava","01.612.911/0001-32",119969,"Av. 04 de Setembro, 614, Centro","85.195-000","Vitorio Antunes de Paula"]
["Ribeirão Claro",0.75073861821208254,"10%","Jacarezinho","75.449.579/0001-73",119970,"R. Coronel Emílio Gomes, 731, Centro","86.410-000","João Carlos Bonato"]
["Ribeirão do Pinhal",0.7008898159336675,"10%","Cornélio Procópio","76.968.064/0001-42",147539,"R. Paraná, 983","86.490-000","Dartagnan Calixto Fraiz"]
["Rio Azul",0.68826408351443957,"5%","Irati","75.963.256/0001-01",119971,"R. Guilherme Pereira, 482","84.560-000","Leandro Jasinski"]
["Rio Bom",0.70782435061491988,"10%","Apucarana","75.771.212/0001-71",119972,"Av. Curitiba, 65, Centro","86.830-000","Moises Jose de Andrade"]
["Rio Bonito do Iguaçu",0.65770682262479807,"5%","Laranjeiras Do Sul","95.587.770/0001-99",119973,"R. 7 de Setembro, 720, Centro","85.340-000","Sezar Augusto Bovino"]
["Rio Branco do Ivaí",0.73152306259666433,"10%","Ivaiporã","01.612.413/0001-90",131889,"Av. Rio Branco, 500","86.848-000","Pedro Taborda Desplanches"]
["Rio Branco do Sul",0.67230651471455471,"5%","Curitiba","76.105.576/0001-85",214820,"R. Horacy Santos, 222, Centro","83.540-000","Karime Fayad"]
["Rio Negro",0.78386390861366595,"10%","Curitiba","76.002.641/0001-47",119974,"R. Juvenal Ferreira Pinto, 2070, Seminário","83.880-000","James Karson Valério"]
["Rolândia",0.78501850440379073,"10%","Londrina","76.288.760/0001-08",119975,"R. Presidente Bernardes, 809, Centro","86.600-000","Ailton Aparecido Maistro"]
["Roncador",0.72155575157210217,"10%","Campo Mourão","75.371.401/0001-57",119976,"Praça Moisés Lupion, 89, Centro","87.320-000","Vivaldo Lessa Moreira"]
["Rondon",0.73507853402362455,"10%","Cianorte","75.380.071/0001-66",119977,"Av. Brasil, 1500, Centro","87.800-000","Roberto Aparecido Corredato"]
["Rosário do Ivaí",0.71406249396257993,"10%","Ivaiporã","80.059.264/0001-50",119978,"Av. São Paulo, 45","86.850-000","Ilton Shiguemi Kuroda"]
["Sabáudia",0.82467148551704594,"10%","Apucarana","76.958.974/0001-44",120640,"Praça da Bandeira, 47, Centro","86.720-000","Moises Soares Ribeiro"]
["Salgado Filho",0.72867038073124701,"10%","Francisco Beltrão","76.205.699/0001-98",119979,"R. Floriano Francisco Anater, 50","85.620-000","Volmar Duarte"]
["Salto do Itararé",0.71542451094112458,"10%","Jacarezinho","76.920.834/0001-87",147888,"R. Eduardo Bertoni Junior, 471","84.945-000","Paulo Sérgio Fragoso da Silva"]
["Salto do Lontra",0.76395252608284225,"10%","Dois Vizinhos","76.205.707/0001-04",119980,"R. Rio Grande do Sul, 975, Centro","85.670-000","Fernando Alberto Cadore"]
["Santa Amélia",0.68949051150111718,"5%","Cornélio Procópio","76.235.746/0001-46",176559,"R. Alcides Prudente Pavan, 130, Centro","86.370-000","Antonio Carlos Tamais"]
["Santa Cecília do Pavão",0.6601552439746059,"5%","Cornélio Procópio","76.290.691/0001-77",122395,"R. Jerônimo Farias Martins, 1335","86.225-000","Edimar Aparecido Pereira dos Santos"]
["Santa Cruz de Monte Castelo",0.68216749524103959,"5%","Paranavaí","75.462.820/0001-02",119981,"Av. Paulo Libânio, 700, Centro","87.920-000","Francisco Antonio Boni"]
["Santa Fé",0.76087792789900188,"10%","Maringá","76.291.418/0001-67",122396,"Av. Presidente Kennedy, 717","86.770-000","Fernando Brambilla"]
["Santa Helena",0.75284688962754398,"10%","Toledo","76.206.457/0001-19",147894,"R. Paraguai, 1401 - Centro","85.892-000","Evandro Miguel Grade"]
["Santa Inês",0.76071196800642926,"10%","Maringá","78.092.293/0001-71",122397,"R. Governador Munhoz da Rocha, 200","86.660-000","Bruno Vieira Luvisotto"]
["Santa Isabel do Ivaí",0.70344274224659797,"10%","Paranavaí","76.974.823/0001-80",119982,"Av. Manoel Ribas, 470, Centro","87.910-000","Freonizio Valente"]
["Santa Izabel do Oeste",0.76565454818902223,"10%","Francisco Beltrão","76.205.715/0001-42",119983,"R. Acácia, 1317, Centro","85.650-000","Jean Pierr Catto"]
["Santa Lúcia",0.67782546601371596,"5%","Cascavel","95.594.776/0001-93",119984,"Av. do Rosário, 228, Centro","85.795-000","Renato Tonidandel"]
["Santa Maria do Oeste",0.63745693663080127,"5%","Pitanga","95.684.544/0001-26",119985,"R. José de França Pereira, 10","85.230-000","Oscar Delgado"]
["Santa Mariana",0.71000170458335232,"10%","Cornélio Procópio","75.392.019/0001-20",119986,"R. Antonio Manoel dos Santos, 151","86.350-000","Jose Marcelo Piovan Guimaraes"]
["Santa Mônica",0.67255325776141783,"5%","Paranavaí","95.641.916/0001-37",119987,"R. Marieta Mocellin, 588","87.915-000","Luan Gustavo Frazatto"]
["Santana do Itararé",0.69836551157646876,"5%","Jacarezinho","76.920.826/0001-30",119988,"Praça Frei Mathias de Gênova, 184, Centro","84.970-000","Jose de Jesuz Izac"]
["Santa Tereza do Oeste",0.73574342336497178,"10%","Cascavel","80.882.095/0001-53",119989,"Av. Paraná, 61","85.825-000","Elio Marciniak"]
["Santa Terezinha de Itaipu",0.68972698299870761,"5%","Cascavel","75.425.314/0001-35",119990,"R. João Xxiii, 144, Centro","85.875-000","Karla Francieli Galende"]
["Santo Antônio da Platina",0.67882829274067225,"5%","Jacarezinho","76.968.627/0001-00",119991,"Praça Nossa Senhora Aparecida, S/N, Centro","86.430-000","José da Silva Coelho Neto"]
["Santo Antônio do Caiuá",0.712231503365647,"10%","Paranavaí","75.483.230/0001-58",119992,"Av. São João, 415","87.730-000","José Gabriel Gonçalves Fachiano"]
["Santo Antônio do Paraíso",0.65080260987817951,"5%","Cornélio Procópio","75.832.170/0001-31",119993,"Av. Deputado Nilson Ribas, 886, Centro","86.315-000","Devanir Martinelli"]
["Santo Antônio do Sudoeste",0.7251373663457138,"10%","Francisco Beltrão","75.927.582/0001-55",122398,"Av. Brasil, 1431, Centro","85.710-000","Ricardo Antonio Ortina"]
["Santo Inácio",0.79999466427496513,"10%","Maringá","76.970.375/0001-46",214821,"R. Marcelino Alves de Alcântara, 133","86.650-000","Geny Violatto"]
["São Carlos do Ivaí",0.79088644862839741,"10%","Paranavaí","75.498.576/0001-20",122399,"Av. Ivaí, 890, Centro","87.770-000","Jose Luiz Santos"]
["São Jerônimo da Serra",0.6349974712261095,"5%","Cornélio Procópio","76.290.683/0001-20",119994,"Praça Coronel Deolindo, 151, Centro","86.270-000","Venicius Djalma Rosa"]
["São João",0.78577013107118854,"10%","Pato Branco","76.995.422/0001-06",122400,"Av. Xv de Novembro, 160","85.570-000","Clovis Mateus Cuccolotto"]
["São João do Caiuá",0.71191483044823167,"10%","Paranavaí","76.238.435/0001-30",122401,"R. Dom Pedro Ii, 800","87.740-000","Stefan Tome Pauka"]
["São João do Ivaí",0.72222535701711654,"10%","Ivaiporã","75.741.355/0001-30",122402,"Av. Curitiba, 563","86.930-000","Carla Suzi Emerenciano"]
["São João do Triunfo",0.66230380196494443,"5%","Ponta Grossa","75.193.516/0001-07",119995,"R. Tenente Coronel Carlos Souza, 312, Centro","84.150-000","Abimael do Valle"]
["São Jorge D'Oeste",0.80396579783014677,"10%","Dois Vizinhos","76.995.380/0001-03",119996,"Av. Iguaçu, 281","85.575-000","Leila Aparecida da Rocha"]
["São Jorge do Ivaí",0.77595482132380633,"10%","Maringá","76.282.649/0001-04",147918,"Praça Santa Cruz, 249, Centro","87.190-000","Agnaldo Carvalho Guimaraes"]
["São Jorge do Patrocínio",0.69619887848531381,"5%","Umuarama","77.870.475/0001-63",119997,"Av. Carlos Spanhol, 164, Centro","87.555-000","José Carlos Baraldi"]
["São José da Boa Vista",0.71042405622699756,"10%","Jacarezinho","76.920.818/0001-94",119998,"R. Reinaldo Martins Gonçalves, 85, Centro","84.980-000","José Lazaro Ferraz"]
["São José Das Palmeiras",0.71270748510567328,"10%","Toledo","77.819.605/0001-33",119999,"R. Marechal Castelo Branco, 979, Centro","85.898-000","Nelton Brum"]
["São José Dos Pinhais",0.74996025498976027,"10%","Curitiba","76.105.543/0001-35",120000,"R. Passos de Oliveira, 1101, Centro","83.030-720","Margarida Maria Singer"]
["São Manoel do Paraná",0.80441335646779299,"10%","Cianorte","80.909.617/0001-63",120001,"Praça Paraná, 50, Centro","87.215-000","Agnaldo Trevisan"]
["São Mateus do Sul",0.75819398838458385,"10%","União da Vitória","76.021.450/0001-22",147925,"R. Barão do Rio Branco, 431","83.900-000","Fernanda Garcia Sardanha"]
["São Miguel do Iguaçu",0.73314029614535337,"10%","Cascavel","76.206.499/0001-50",120002,"R. Vânio Ghellere, 64, Centro","85.877-000","Boaventura Manoel João Motta"]
["São Pedro do Iguaçu",0.68933255930659165,"5%","Toledo","95.583.597/0001-50",120003,"R. Niterói, 121, Centro","85.929-000","José Aroldo Malvestio"]
["São Pedro do Ivaí",0.66960844039422496,"5%","Ivaiporã","75.771.311/0001-53",120004,"Praça Padre José Rossi, 354, Centro","86.945-000","Maria Regina Della Rosa Magri"]
["São Pedro do Paraná",0.69989324194726077,"5%","Paranavaí","76.975.259/0001-10",120005,"Av. Paraná, 307","87.955-000","Neila de Fatima Luizão Fernandes"]
["São Sebastião da Amoreira",0.66945815527927532,"5%","Cornélio Procópio","76.290.659/0001-91",120006,"R. Papa João Xxii, 1086, Centro","86.240-000","Exilaine Gaspar"]
["São Tomé",0.74985499779935172,"10%","Cianorte","75.381.178/0001-29",122411,"Praça Professor Pedro Fecchio, 248, Centro","87.220-000","Ocelio Cesar Ferreira Leite"]
["Sapopema",0.6561630345051942,"5%","Cornélio Procópio","76.167.733/0001-87",120007,"Av. Manoel Ribas, 858, Centro","84.290-000","Paulo Maximiano de Souza Junior"]
["Sarandi",0.69816098979402119,"5%","Maringá","78.200.482/0001-10",120008,"R. José Emiliano de Gusmão, 565, Centro","87.111-230","Walter Volpato"]
["Saudade do Iguaçu",0.80781757288056488,"10%","Pato Branco","95.585.477/0001-92",120009,"R. Frei Vito Berscheid, 708, Centro","85.568-000","Darlei Trento"]
["Sengés",0.73383123865744959,"10%","Ponta Grossa","76.911.676/0001-07",120010,"Travesa Senador Souza Naves, 95, Centro","84.220-000","Nelson Ferreira Ramos"]
["Serranópolis do Iguaçu",0.72250057140652402,"10%","Cascavel","01.613.052/0001-04",131898,"Av. Santos Dumont, 2021","85.885-000","Ivo Roberti"]
["Sertaneja",0.76439939490131981,"10%","Cornélio Procópio","75.393.082/0001-80",120011,"Av. Nossa Senhora do Rocio, 233, Centro","86.340-000","Jamison Donizete da Silva"]
["Sertanópolis",0.78017960733055525,"10%","Londrina","76.245.034/0001-08",120012,"Av. Doutor Vacyr Gonçalves Pereira, 342, Centro","86.170-000","Ana Ruth Secco"]
["Siqueira Campos",0.74975823804076536,"10%","Jacarezinho","76.919.083/0001-89",147941,"R. Marechal Deodoro, 1837, Centro","84.940-000","Luiz Henrique Germano"]
["Sulina",0.75982595058559799,"10%","Pato Branco","80.869.886/0001-43",122403,"R. Tupinambá, 68, Centro","85.565-000","Paulo Horn"]
["Tamarana",0.61933897556519846,"5%","Londrina","01.613.167/0001-90",120013,"R. Izaltino José Silvestre, 643","86.125-000","Luzia Harue Suzukawa"]
["Tamboara",0.75024248975168772,"10%","Paranavaí","76.978.519/0001-00",120014,"Praça Isabel Marcos Beltrame, 2000, Centro","87.760-000","Antonio Carlos Cauneto"]
["Tapejara",0.75011241212802082,"10%","Cianorte","76.247.345/0001-06",147945,"Av. Tancredo Neves, 442, Centro","87.430-000","Rodrigo de Oliveira Souza Koike"]
["Tapira",0.67012085583373437,"5%","Umuarama","75.801.738/0001-57",120015,"R. Paranaguá, 518","87.830-000","Claudio Sidiney de Lima"]
["Teixeira Soares",0.70636408649877624,"10%","Irati","75.963.850/0001-94",122404,"Praça Xv de Novembro, 135, Centro","84.530-000","Lucinei Carlos Thomaz"]
["Telêmaco Borba",0.75847030909633206,"10%","Ponta Grossa","76.170.240/0001-04",147552,"Praça Doutor Horácio Klabin, 37, Centro","84.261-170","Márcio Artur de Matos"]
["Terra Boa",0.76428511235911989,"10%","Campo Mourão","75.793.786/0001-40",122332,"R. Presidente Tancredo de Almeida Neves, 240, Centro","87.240-000","Edmilson Pedro de Moura"]
["Terra Rica",0.74294779924109144,"10%","Paranavaí","76.978.881/0001-81",120016,"Av. Euclides da Cunha, 1120, Centro","87.890-000","Julio Cesar da Silva Leite"]
["Terra Roxa",0.75901571250752442,"10%","Toledo","75.587.204/0001-70",122405,"Av. Presidente Costa E Silva, 95, Centro","85.990-000","Ivan Reis da Silva"]
["Tibagi",0.67337040611620436,"5%","Ponta Grossa","76.170.257/0001-53",122406,"Praça Edmundo Mercer, 34, Centro","84.300-000","Artur Ricardo Nolte"]
["Tijucas do Sul",0.64774950393243058,"5%","Curitiba","76.105.584/0001-21",122407,"R. Xv de Novembro, 1438, Centro","83.190-000","José Altair Moreira"]
["Toledo",0.84784673032813351,"10%","Toledo","76.205.806/0001-88",120017,"R. Raimundo Leonardi, 1586","85.900-110","Luis Adalberto Beto Lunitti Pagnussatt"]
["Tomazina",0.72875147829077491,"10%","Jacarezinho","75.697.094/0001-07",132301,"Praça João José Ribeiro, 99","84.935-000","Flávio Xavier de Lima Zanrosso"]
["Três Barras do Paraná",0.74431194254035782,"10%","Cascavel","78.121.936/0001-68",120018,"Av. Brasil, 245","85.485-000","Gerso Francisco Gusso"]
["Tunas do Paraná",0.57875856495489775,"5%","Curitiba","68.703.834/0001-05",132267,"R. Eros Ruppel Abdalla, 189","83.480-000","Marco Antonio Baldão"]
["Tuneiras do Oeste",0.68256521803600012,"5%","Cianorte","76.247.329/0001-13",147958,"R. Santa Catarina, 409, Centro","87.450-000","Taketoshi Sakurada"]
["Tupãssi",0.75158508298380988,"10%","Toledo","77.877.116/0001-38",120019,"Praça Santos Dumont, S/N, Centro","85.945-000","Luiz Carlos Beletti"]
["Turvo",0.737735840513421,"10%","Guarapuava","78.279.973/0001-07",120020,"Av. Doze de Maio, 353, Centro","85.150-000","Jeronimo Gadens do Rosario"]
["Ubiratã",0.82902550111226336,"10%","Campo Mourão","76.950.096/0001-10",120021,"Av. Nilza de Oliveira Pipino, 1852, Centro","85.440-000","Fabio de Oliveira Dalecio"]
["Umuarama",0.77329825435657751,"10%","Umuarama","76.247.378/0001-56",122408,"Av. Rio Branco, 3717","87.501-130","Celso Luiz Pozzobom"]
["União da Vitória",0.75898266853261021,"10%","União da Vitória","75.967.760/0001-71",120022,"R. Cruz Machado, 205","84.600-000","Bachir Abbas"]
["Uniflor",0.6969081614122018,"5%","Maringá","76.279.975/0001-62",147964,"Av. Das Flores, 118","87.640-000","José Bassi Neto"]
["Uraí",0.69684076064808897,"5%","Cornélio Procópio","75.424.507/0001-71",132280,"R. Rio de Janeiro, 496","86.280-000","Angelo Tarantini Filho"]
["Ventania",0.64902215777805539,"5%","Ponta Grossa","95.685.798/0001-69",147965,"Av. Anacleto Bueno de Camargo, 825, Centro","84.345-000","José Luiz Bittencourt"]
["Vera Cruz do Oeste",0.73563240616652303,"10%","Cascavel","78.101.821/0001-01",120023,"R. Rui Barbosa, 202, Centro","85.845-000","Ahmad Issa"]
["Verê",0.77287695037742521,"10%","Francisco Beltrão","75.636.530/0001-20",120024,"R. Pioneiro Antônio Fabiane, 316, Centro","85.585-000","Ademilso Rosin"]
["Virmond",0.75519566816803374,"10%","Laranjeiras Do Sul","95.587.622/0001-74",120025,"R. Xv de Novembro, 608, Centro","85.390-000","Neimar Granoski"]
["Vitorino",0.73308983176492737,"10%","Pato Branco","76.995.463/0001-00",120034,"R. Barão de Capanema, 134, Centro","85.520-000","Marciano Vottri"]
["Wenceslau Braz",0.71419552864341584,"10%","Jacarezinho","76.920.800/0001-92",120026,"R. Barão do Rio Branco , 271, Centro","84.950-000","Atahyde Ferreira dos Santos Junior"]
["Xambrê",0.6640914413942034,"5%","Umuarama","76.247.360/0001-54",120027,"Av. Roque Gonzales, 480, Centro","87.535-000","Decio Jardim"]